Workbook

Sheet ENERO
B4: REGISTRO DE LA LISTA DE VERIFICACION DE CIRUGIA SEGURA
B5: AÑO: U.E.408 HOSPITAL DE ESPINAR - ENERO 2023 | E5: NO REGISTRA | F5: NO PRECEDE
C6: SI | D6: NO | E6: NR | F6: NP | G6: TOTAL
A7: ENTRADA | B7: PACIENTE CONFIRMA SU IDENTIDAD, EL SITIO QUIRUGICO, EL PROCEDIMIENTO Y CONSENTIMIENTO | C7: 69 | G7: =SUM(C7:F7) -> 69
B8: SE HA MARCADO EL SITIO QUIRURGICO | C8: 57 | D8: 12 | G8: =SUM(C8:F8) -> 69 | I8: =SUM(C7,C8,C9,C10,D11,D12,C13,D14,C15) -> 523 | J8: =I8/$I$10 -> 0.8559738134
B9: SE COMPROBO LA DISPONIBILIDAD DE LOS EQUIPOS DE ANESTESIA Y LA MEDICACION ANESTESICA | C9: 68 | D9: 1 | G9: 69 | I9: =SUM(D7,D8,D9,D10,C11,C12,D13,C14,D15) -> 88 | J9: =I9/$I$10 -> 0.1440261866
B10: SE COLOCO EL PULXIOMETRO AL PACIENTE Y FUNCIONA | C10: 68 | D10: 1 | G10: 69 | I10: =SUM(I8:I9) -> 611
B11: EL PACIENTE TIENE ALERGIAS | C11: 3 | D11: 66 | G11: 69
B12: VIA AEREA DIFICIL / RIESGO DE ASPIRACION | C12: 3 | D12: 66 | G12: 69
B13: HAY INSTRUMENTAL Y EQUIPO DISPONIBLE | C13: 38 | D13: 28 | E13: 3 | G13: 69
B14: RIESGO DE HEMORRAGIA MENOR A 500 ML | C14: 11 | D14: 52 | E14: 6 | G14: 69
B15: SE HA PREVISTO DISPONIBILIDAD DE COMPONENTE SANGUINEO EN BANCO DE SANGRE | C15: 39 | D15: 29 | E15: 1 | G15: 69
A16: PAUSA | B16: CONFIRMAR QUE TODOS LOS MIEMBROS DEL EQUIPO PROGRAMADOS SE HAYAN PRESENTADO POR SU NOMBRE | C16: 69 | G16: 69
B17: CONFIRMAR LA IDENTIDAD DEL PACIENTE, EL PROCEDIMIENTO Y EL SITIO QUIRUGICO | C17: 69 | G17: 69
B18: CONFIRMAR SI TODOS LOS MIEMBROS DEL EQUIPO HAN CUMPLIDO CORRECTAMENTE CON EL PROTOCOLO DE AS | C18: 69 | G18: 69
B19: SE HA ADMINISTRADO PROFILAXIS CON ANTIBIOTICOS EN LOS ULTIMOS 60 MINUTOS | C19: 62 | D19: 6 | F19: 1 | G19: 69 | I19: =SUM(C16,C17,C18,C19,C20,,C22,D23,C24,D25,C26) -> 553 | J19: =I19/$I$21 -> 0.8848
B20: ¿CUALES SON LOS PASOS CRITICOS O INESPERADO? | C20: 7 | D20: 57 | E20: 5 | G20: 69 | I20: =SUM(D16,D17,D18,D19,D20,D21,D22,C23,D24,C25,D26) -> 72 | J20: =I20/$I$21 -> 0.1152
B21: ¿CUANTO DURARA LA OPERACIÓN? | C21: 67 | D21: 1 | E21: 1 | G21: 69 | I21: =SUM(I19:I20) -> 625
B22: ¿CUANTO ES LA PERDIDA DE SALGRE PREVISTA? | C22: 60 | D22: 5 | E22: 4 | G22: 69
B23: ¿PRESENTA EL PACIENTE ALGUN PROBLEMA ESPECIFICO? | C23: 3 | D23: 66 | G23: 69
B24: ¿SE HA CONFIRMADO LA ESTERILIDAD DE ROPA, INSTRUMENTAL Y EQUIPOS? | C24: 69 | G24: 69
B25: ¿HAY DUDAS O PROBLEMAS RELACIONADOS CON ELLOS? | D25: 69 | G25: 69
B26: ¿PUEDEN VISUALIZARSE LAS IMÁGENES DIAGNOSTICADAS ESENCIALES? | C26: 13 | F26: 56 | G26: 69
A27: SALIDA | B27: EL ENFERMERO CONFIRMA VERBALMENTE EL NOMBRE DEL PROCEDIMIENTO | C27: 69 | G27: 69
B28: EL RECUENTO DE INSTRUMENTOS, GASA Y AGUJAS | C28: 69 | G28: 69 | I28: =SUM(C27,C28,C29,C30,C31,D32) -> 215 | J28: =I28/$I$30 -> 0.6761006289
B29: EL ETIQUETADO DE LAS MUESTRAS (LECTURA DE LA ETIQUETA EN VOZ ALTA, INCLUIDO EL NOMBRE DEL PACIENTE | C29: 8 | D29: 35 | E29: 3 | F29: 23 | G29: 69 | I29: =SUM(D27,D28,D29,D30,D31,C32) -> 103 | J29: =I29/$I$30 -> 0.3238993711
B30: SI HAY PROBLEMAS QUE SE RESUELVE RELACIONADOS CON EL INSTRUMENTAL Y LOS EQUIPOS | C30: 1 | D30: 68 | G30: 69 | I30: =SUM(I28:I29) -> 318
B31: (CIRUJANO, ANESTESIOLOGO, ENFERMERO) CUALES SON LOS ASPECTOS CRITICOS DE LA RECUPERACION Y EL TRAMITE | C31: 68 | E31: 1 | G31: 69
B32: OBSERVACIONES | E32: 69 | G32: 69
A33: FIRMA | B33: FIRMA DEL CIRUJANO | C33: 69 | G33: 69
B34: FIRMA DEL ANESTESIOLOGO | C34: 69 | G34: 69
B35: FIRMA DE LA ENFERMERA | C35: 69 | G35: 69 | I35: =SUM(C33,C34,C35,C36,C37,C38,C39) -> 413 | J35: =I35/$I$37 -> 0.8550724638
B36: FIRMA DEL COORDINADOR | D36: 69 | G36: 69 | I36: =SUM(D33,D34,D35,D36,D37,,D38,D39) -> 70 | J36: =I36/$I$37 -> 0.1449275362
B37: NRO DE HISTORIA CLINICA | C37: 68 | D37: 1 | G37: 69 | I37: =SUM(I35:I36) -> 483
B38: NOMBRE Y APELLIDOS DEL PACIENTE | C38: 69 | G38: 69
B39: FECHA | C39: 69 | G39: 69
B45: PORCENTAJE DE CUMPLIMIENTO DE LA LISTA DE VERIFICACION DE CIRUGIA SEGURA
C51: ENTRADA | D51: (+) | E51: =J8 -> 0.8559738134
D52: (-) | E52: =J9 -> 0.1440261866
C53: PAUSA | D53: (+) | E53: =J19 -> 0.8848 | M53: Cumplimiento
D54: (-) | E54: =J20 -> 0.1152 | L54: Entrada | M54: =E51 -> 0.8559738134
C55: SALIDA | D55: (+) | E55: =J28 -> 0.6761006289 | L55: Pausa | M55: =E53 -> 0.8848
D56: (-) | E56: =J29 -> 0.3238993711 | L56: Salida | M56: =E55 -> 0.6761006289
C57: FIRMA | D57: (+) | E57: =J35 -> 0.8550724638 | L57: Firmas | M57: =E57 -> 0.8550724638
D58: (-) | E58: =J36 -> 0.1449275362 | L58: Cumplimiento | M58: =AVERAGE(M54:M57) -> 0.8179867265
C59: CUMPLIMIENTO | E59: =M58 -> 0.8179867265

Sheet FEBRERO
B4: REGISTRO DE LA LISTA DE VERIFICACION DE CIRUGIA SEGURA
B5: AÑO: U.E.408 HOSPITAL DE ESPINAR - ENERO 2023 | E5: NO REGISTRA | F5: NO PRECEDE
C6: SI | D6: NO | E6: NR | F6: NP | G6: TOTAL
A7: ENTRADA | B7: PACIENTE CONFIRMA SU IDENTIDAD, EL SITIO QUIRUGICO, EL PROCEDIMIENTO Y CONSENTIMIENTO | C7: 68 | G7: =SUM(C7:F7) -> 68
B8: SE HA MARCADO EL SITIO QUIRURGICO | C8: 29 | D8: 34 | F8: 5 | G8: =SUM(C8:F8) -> 68 | I8: =SUM(C7,C8,C9,C10,D11,D12,C13,D14,C15) -> 476 | J8: =I8/$I$10 -> 0.784184514
B9: SE COMPROBO LA DISPONIBILIDAD DE LOS EQUIPOS DE ANESTESIA Y LA MEDICACION ANESTESICA | C9: 68 | G9: 68 | I9: =SUM(D7,D8,D9,D10,C11,C12,D13,C14,D15) -> 131 | J9: =I9/$I$10 -> 0.215815486
B10: SE COLOCO EL PULXIOMETRO AL PACIENTE Y FUNCIONA | C10: 66 | D10: 2 | G10: 68 | I10: =SUM(I8:I9) -> 607
B11: EL PACIENTE TIENE ALERGIAS | D11: 68 | G11: 68
B12: VIA AEREA DIFICIL / RIESGO DE ASPIRACION | C12: 2 | D12: 66 | G12: 68
B13: HAY INSTRUMENTAL Y EQUIPO DISPONIBLE | C13: 32 | D13: 36 | G13: 68
B14: RIESGO DE HEMORRAGIA MENOR A 500 ML | C14: 17 | D14: 51 | G14: 68
B15: SE HA PREVISTO DISPONIBILIDAD DE COMPONENTE SANGUINEO EN BANCO DE SANGRE | C15: 28 | D15: 40 | G15: 68
A16: PAUSA | B16: CONFIRMAR QUE TODOS LOS MIEMBROS DEL EQUIPO PROGRAMADOS SE HAYAN PRESENTADO POR SU NOMBRE | C16: 68 | G16: 68
B17: CONFIRMAR LA IDENTIDAD DEL PACIENTE, EL PROCEDIMIENTO Y EL SITIO QUIRUGICO | C17: 68 | G17: 68
B18: CONFIRMAR SI TODOS LOS MIEMBROS DEL EQUIPO HAN CUMPLIDO CORRECTAMENTE CON EL PROTOCOLO DE AS | C18: 68 | G18: 68
B19: SE HA ADMINISTRADO PROFILAXIS CON ANTIBIOTICOS EN LOS ULTIMOS 60 MINUTOS | C19: 66 | D19: 1 | F19: 1 | G19: 68 | I19: =SUM(C16,C17,C18,C19,C20,,C22,D23,C24,D25,C26) -> 569 | J19: =I19/$I$21 -> 0.8974763407
B20: ¿CUALES SON LOS PASOS CRITICOS O INESPERADO? | C20: 7 | D20: 61 | G20: 68 | I20: =SUM(D16,D17,D18,D19,D20,D21,D22,C23,D24,C25,D26) -> 65 | J20: =I20/$I$21 -> 0.1025236593
B21: ¿CUANTO DURARA LA OPERACIÓN? | C21: 68 | G21: 68 | I21: =SUM(I19:I20) -> 634
B22: ¿CUANTO ES LA PERDIDA DE SALGRE PREVISTA? | C22: 68 | G22: 68
B23: ¿PRESENTA EL PACIENTE ALGUN PROBLEMA ESPECIFICO? | C23: 3 | D23: 65 | G23: 68
B24: ¿SE HA CONFIRMADO LA ESTERILIDAD DE ROPA, INSTRUMENTAL Y EQUIPOS? | C24: 68 | G24: 68
B25: ¿HAY DUDAS O PROBLEMAS RELACIONADOS CON ELLOS? | D25: 68 | G25: 68
B26: ¿PUEDEN VISUALIZARSE LAS IMÁGENES DIAGNOSTICADAS ESENCIALES? | C26: 23 | F26: 45 | G26: 68
A27: SALIDA | B27: EL ENFERMERO CONFIRMA VERBALMENTE EL NOMBRE DEL PROCEDIMIENTO | C27: 68 | G27: 68
B28: EL RECUENTO DE INSTRUMENTOS, GASA Y AGUJAS | C28: 68 | G28: 68 | I28: =SUM(C27,C28,C29,C30,C31,D32) -> 215 | J28: =I28/$I$30 -> 0.6534954407
B29: EL ETIQUETADO DE LAS MUESTRAS (LECTURA DE LA ETIQUETA EN VOZ ALTA, INCLUIDO EL NOMBRE DEL PACIENTE | C29: 11 | D29: 46 | F29: 11 | G29: 68 | I29: =SUM(D27,D28,D29,D30,D31,C32) -> 114 | J29: =I29/$I$30 -> 0.3465045593
B30: SI HAY PROBLEMAS QUE SE RESUELVE RELACIONADOS CON EL INSTRUMENTAL Y LOS EQUIPOS | D30: 68 | G30: 68 | I30: =SUM(I28:I29) -> 329
B31: (CIRUJANO, ANESTESIOLOGO, ENFERMERO) CUALES SON LOS ASPECTOS CRITICOS DE LA RECUPERACION Y EL TRAMITE | C31: 68 | G31: 68
B32: OBSERVACIONES | E32: 68 | G32: 68
A33: FIRMA | B33: FIRMA DEL CIRUJANO | C33: 68 | G33: 68
B34: FIRMA DEL ANESTESIOLOGO | C34: 68 | G34: 68
B35: FIRMA DE LA ENFERMERA | C35: 68 | G35: 68 | I35: =SUM(C33,C34,C35,C36,C37,C38,C39) -> 447 | J35: =I35/$I$37 -> 0.9390756303
B36: FIRMA DEL COORDINADOR | C36: 39 | D36: 29 | G36: 68 | I36: =SUM(D33,D34,D35,D36,D37,,D38,D39) -> 29 | J36: =I36/$I$37 -> 0.06092436975
B37: NRO DE HISTORIA CLINICA | C37: 68 | G37: 68 | I37: =SUM(I35:I36) -> 476
B38: NOMBRE Y APELLIDOS DEL PACIENTE | C38: 68 | G38: 68
B39: FECHA | C39: 68 | G39: 68
B45: PORCENTAJE DE CUMPLIMIENTO DE LA LISTA DE VERIFICACION DE CIRUGIA SEGURA
C51: ENTRADA | D51: (+) | E51: =J8 -> 0.784184514
D52: (-) | E52: =J9 -> 0.215815486
C53: PAUSA | D53: (+) | E53: =J19 -> 0.8974763407 | M53: Cumplimiento
D54: (-) | E54: =J20 -> 0.1025236593 | L54: Entrada | M54: =E51 -> 0.784184514
C55: SALIDA | D55: (+) | E55: =J28 -> 0.6534954407 | L55: Pausa | M55: =E53 -> 0.8974763407
D56: (-) | E56: =J29 -> 0.3465045593 | L56: Salida | M56: =E55 -> 0.6534954407
C57: FIRMA | D57: (+) | E57: =J35 -> 0.9390756303 | L57: Firmas | M57: =E57 -> 0.9390756303
D58: (-) | E58: =J36 -> 0.06092436975 | L58: Cumplimiento | M58: =AVERAGE(M54:M57) -> 0.8185579814
C59: CUMPLIMIENTO | E59: =M58 -> 0.8185579814

Sheet MARZO
B4: REGISTRO DE LA LISTA DE VERIFICACION DE CIRUGIA SEGURA
B5: AÑO: U.E.408 HOSPITAL DE ESPINAR -MARZO 2023 | E5: NO REGISTRA | F5: NO PRECEDE
C6: SI | D6: NO | E6: NR | F6: NP | G6: TOTAL
A7: ENTRADA | B7: PACIENTE CONFIRMA SU IDENTIDAD, EL SITIO QUIRUGICO, EL PROCEDIMIENTO Y CONSENTIMIENTO | C7: 82 | G7: =SUM(C7:F7) -> 82
B8: SE HA MARCADO EL SITIO QUIRURGICO | C8: 60 | D8: 20 | F8: 2 | G8: =SUM(C8:F8) -> 82 | I8: =SUM(C7,C8,C9,C10,D11,D12,C13,D14,C15) -> 559 | J8: =I8/$I$10 -> 0.8707165109
B9: SE COMPROBO LA DISPONIBILIDAD DE LOS EQUIPOS DE ANESTESIA Y LA MEDICACION ANESTESICA | C9: 82 | G9: 82 | I9: =SUM(D7,D8,D9,D10,C11,C12,D13,C14,D15) -> 83 | J9: =I9/$I$10 -> 0.1292834891
B10: SE COLOCO EL PULXIOMETRO AL PACIENTE Y FUNCIONA | C10: 79 | D10: 3 | G10: 82 | I10: =SUM(I8:I9) -> 642
B11: EL PACIENTE TIENE ALERGIAS | C11: 1 | D11: 80 | E11: 1 | G11: 82
B12: VIA AEREA DIFICIL / RIESGO DE ASPIRACION | C12: 4 | D12: 77 | E12: 1 | G12: 82
B13: HAY INSTRUMENTAL Y EQUIPO DISPONIBLE | C13: 23 | D13: 13 | E13: 46 | G13: 82
B14: RIESGO DE HEMORRAGIA MENOR A 500 ML | C14: 14 | D14: 62 | E14: 6 | G14: 82
B15: SE HA PREVISTO DISPONIBILIDAD DE COMPONENTE SANGUINEO EN BANCO DE SANGRE | C15: 14 | D15: 28 | E15: 40 | G15: 82
A16: PAUSA | B16: CONFIRMAR QUE TODOS LOS MIEMBROS DEL EQUIPO PROGRAMADOS SE HAYAN PRESENTADO POR SU NOMBRE | C16: 81 | E16: 1 | G16: 82
B17: CONFIRMAR LA IDENTIDAD DEL PACIENTE, EL PROCEDIMIENTO Y EL SITIO QUIRUGICO | C17: 81 | E17: 1 | G17: 82
B18: CONFIRMAR SI TODOS LOS MIEMBROS DEL EQUIPO HAN CUMPLIDO CORRECTAMENTE CON EL PROTOCOLO DE AS | C18: 81 | E18: 1 | G18: 82
B19: SE HA ADMINISTRADO PROFILAXIS CON ANTIBIOTICOS EN LOS ULTIMOS 60 MINUTOS | C19: 81 | E19: 1 | G19: 82 | I19: =SUM(C16,C17,C18,C19,C20,,C22,D23,C24,D25,C26) -> 747 | J19: =I19/$I$21 -> 0.9907161804
B20: ¿CUALES SON LOS PASOS CRITICOS O INESPERADO? | C20: 81 | E20: 1 | G20: 82 | I20: =SUM(D16,D17,D18,D19,D20,D21,D22,C23,D24,C25,D26) -> 7 | J20: =I20/$I$21 -> 0.009283819629
B21: ¿CUANTO DURARA LA OPERACIÓN? | C21: 81 | E21: 1 | G21: 82 | I21: =SUM(I19:I20) -> 754
B22: ¿CUANTO ES LA PERDIDA DE SALGRE PREVISTA? | C22: 81 | E22: 1 | G22: 82
B23: ¿PRESENTA EL PACIENTE ALGUN PROBLEMA ESPECIFICO? | C23: 2 | D23: 77 | E23: 3 | G23: 82
B24: ¿SE HA CONFIRMADO LA ESTERILIDAD DE ROPA, INSTRUMENTAL Y EQUIPOS? | C24: 78 | D24: 2 | E24: 2 | G24: 82
B25: ¿HAY DUDAS O PROBLEMAS RELACIONADOS CON ELLOS? | C25: 1 | D25: 77 | E25: 4 | G25: 82
B26: ¿PUEDEN VISUALIZARSE LAS IMÁGENES DIAGNOSTICADAS ESENCIALES? | C26: 29 | D26: 2 | E26: 4 | F26: 47 | G26: 82
A27: SALIDA | B27: EL ENFERMERO CONFIRMA VERBALMENTE EL NOMBRE DEL PROCEDIMIENTO | C27: 81 | E27: 1 | G27: 82
B28: EL RECUENTO DE INSTRUMENTOS, GASA Y AGUJAS | C28: 81 | E28: 1 | G28: 82 | I28: =SUM(C27,C28,C29,C30,C31,D32) -> 257 | J28: =I28/$I$30 -> 0.6572890026
B29: EL ETIQUETADO DE LAS MUESTRAS (LECTURA DE LA ETIQUETA EN VOZ ALTA, INCLUIDO EL NOMBRE DEL PACIENTE | C29: 14 | D29: 54 | E29: 5 | F29: 9 | G29: 82 | I29: =SUM(D27,D28,D29,D30,D31,C32) -> 134 | J29: =I29/$I$30 -> 0.3427109974
B30: SI HAY PROBLEMAS QUE SE RESUELVE RELACIONADOS CON EL INSTRUMENTAL Y LOS EQUIPOS | D30: 80 | E30: 2 | G30: 82 | I30: =SUM(I28:I29) -> 391
B31: (CIRUJANO, ANESTESIOLOGO, ENFERMERO) CUALES SON LOS ASPECTOS CRITICOS DE LA RECUPERACION Y EL TRAMITE | C31: 81 | E31: 1 | G31: 82
B32: OBSERVACIONES | E32: 82 | G32: 82
A33: FIRMA | B33: FIRMA DEL CIRUJANO | C33: 78 | D33: 4 | G33: 82
B34: FIRMA DEL ANESTESIOLOGO | C34: 80 | D34: 2 | G34: 82
B35: FIRMA DE LA ENFERMERA | C35: 82 | G35: 82 | I35: =SUM(C33,C34,C35,C36,C37,C38,C39) -> 547 | J35: =I35/$I$37 -> 0.9529616725
B36: FIRMA DEL COORDINADOR | C36: 61 | D36: 21 | G36: 82 | I36: =SUM(D33,D34,D35,D36,D37,,D38,D39) -> 27 | J36: =I36/$I$37 -> 0.04703832753
B37: NRO DE HISTORIA CLINICA | C37: 82 | G37: 82 | I37: =SUM(I35:I36) -> 574
B38: NOMBRE Y APELLIDOS DEL PACIENTE | C38: 82 | G38: 82
B39: FECHA | C39: 82 | G39: 82
B45: PORCENTAJE DE CUMPLIMIENTO DE LA LISTA DE VERIFICACION DE CIRUGIA SEGURA
C51: ENTRADA | D51: (+) | E51: =J8 -> 0.8707165109
D52: (-) | E52: =J9 -> 0.1292834891
C53: PAUSA | D53: (+) | E53: =J19 -> 0.9907161804 | M53: Cumplimiento
D54: (-) | E54: =J20 -> 0.009283819629 | L54: Entrada | M54: =E51 -> 0.8707165109
C55: SALIDA | D55: (+) | E55: =J28 -> 0.6572890026 | L55: Pausa | M55: =E53 -> 0.9907161804
D56: (-) | E56: =J29 -> 0.3427109974 | L56: Salida | M56: =E55 -> 0.6572890026
C57: FIRMA | D57: (+) | E57: =J35 -> 0.9529616725 | L57: Firmas | M57: =E57 -> 0.9529616725
D58: (-) | E58: =J36 -> 0.04703832753 | L58: Cumplimiento | M58: =AVERAGE(M54:M57) -> 0.8679208416
C59: CUMPLIMIENTO | E59: =M58 -> 0.8679208416

Sheet I TRIMESTRE 2023
B4: REGISTRO DE LA LISTA DE VERIFICACION DE CIRUGIA SEGURA
B5: AÑO: U.E.408 HOSPITAL DE ESPINAR -MARZO 2023 | E5: NO REGISTRA | F5: NO PRECEDE
C6: SI | D6: NO | E6: NR | F6: NP | G6: TOTAL
A7: ENTRADA | B7: PACIENTE CONFIRMA SU IDENTIDAD, EL SITIO QUIRUGICO, EL PROCEDIMIENTO Y CONSENTIMIENTO | C7: =+MARZO!C7+FEBRERO!C7+ENERO!C7 -> 219 | D7: =+MARZO!D7+FEBRERO!D7+ENERO!D7 -> 0 | E7: =+MARZO!E7+FEBRERO!E7+ENERO!E7 -> 0 | F7: =+MARZO!F7+FEBRERO!F7+ENERO!F7 -> 0 | G7: =SUM(C7:F7) -> 219
B8: SE HA MARCADO EL SITIO QUIRURGICO | C8: =+MARZO!C8+FEBRERO!C8+ENERO!C8 -> 146 | D8: =+MARZO!D8+FEBRERO!D8+ENERO!D8 -> 66 | E8: =+MARZO!E8+FEBRERO!E8+ENERO!E8 -> 0 | F8: =+MARZO!F8+FEBRERO!F8+ENERO!F8 -> 7 | G8: =SUM(C8:F8) -> 219 | I8: =SUM(C7,C8,C9,C10,D11,D12,C13,D14,C15) -> 1558 | J8: =I8/$I$10 -> 0.8376344086
B9: SE COMPROBO LA DISPONIBILIDAD DE LOS EQUIPOS DE ANESTESIA Y LA MEDICACION ANESTESICA | C9: =+MARZO!C9+FEBRERO!C9+ENERO!C9 -> 218 | D9: =+MARZO!D9+FEBRERO!D9+ENERO!D9 -> 1 | E9: =+MARZO!E9+FEBRERO!E9+ENERO!E9 -> 0 | F9: =+MARZO!F9+FEBRERO!F9+ENERO!F9 -> 0 | G9: 219 | I9: =SUM(D7,D8,D9,D10,C11,C12,D13,C14,D15) -> 302 | J9: =I9/$I$10 -> 0.1623655914
B10: SE COLOCO EL PULXIOMETRO AL PACIENTE Y FUNCIONA | C10: =+MARZO!C10+FEBRERO!C10+ENERO!C10 -> 213 | D10: =+MARZO!D10+FEBRERO!D10+ENERO!D10 -> 6 | E10: =+MARZO!E10+FEBRERO!E10+ENERO!E10 -> 0 | F10: =+MARZO!F10+FEBRERO!F10+ENERO!F10 -> 0 | G10: 219 | I10: =SUM(I8:I9) -> 1860
B11: EL PACIENTE TIENE ALERGIAS | C11: =+MARZO!C11+FEBRERO!C11+ENERO!C11 -> 4 | D11: =+MARZO!D11+FEBRERO!D11+ENERO!D11 -> 214 | E11: =+MARZO!E11+FEBRERO!E11+ENERO!E11 -> 1 | F11: =+MARZO!F11+FEBRERO!F11+ENERO!F11 -> 0 | G11: 219
B12: VIA AEREA DIFICIL / RIESGO DE ASPIRACION | C12: =+MARZO!C12+FEBRERO!C12+ENERO!C12 -> 9 | D12: =+MARZO!D12+FEBRERO!D12+ENERO!D12 -> 209 | E12: =+MARZO!E12+FEBRERO!E12+ENERO!E12 -> 1 | F12: =+MARZO!F12+FEBRERO!F12+ENERO!F12 -> 0 | G12: 219
B13: HAY INSTRUMENTAL Y EQUIPO DISPONIBLE | C13: =+MARZO!C13+FEBRERO!C13+ENERO!C13 -> 93 | D13: =+MARZO!D13+FEBRERO!D13+ENERO!D13 -> 77 | E13: =+MARZO!E13+FEBRERO!E13+ENERO!E13 -> 49 | F13: =+MARZO!F13+FEBRERO!F13+ENERO!F13 -> 0 | G13: 219
B14: RIESGO DE HEMORRAGIA MENOR A 500 ML | C14: =+MARZO!C14+FEBRERO!C14+ENERO!C14 -> 42 | D14: =+MARZO!D14+FEBRERO!D14+ENERO!D14 -> 165 | E14: =+MARZO!E14+FEBRERO!E14+ENERO!E14 -> 12 | F14: =+MARZO!F14+FEBRERO!F14+ENERO!F14 -> 0 | G14: 219
B15: SE HA PREVISTO DISPONIBILIDAD DE COMPONENTE SANGUINEO EN BANCO DE SANGRE | C15: =+MARZO!C15+FEBRERO!C15+ENERO!C15 -> 81 | D15: =+MARZO!D15+FEBRERO!D15+ENERO!D15 -> 97 | E15: =+MARZO!E15+FEBRERO!E15+ENERO!E15 -> 41 | F15: =+MARZO!F15+FEBRERO!F15+ENERO!F15 -> 0 | G15: 219
A16: PAUSA | B16: CONFIRMAR QUE TODOS LOS MIEMBROS DEL EQUIPO PROGRAMADOS SE HAYAN PRESENTADO POR SU NOMBRE | C16: =+MARZO!C16+FEBRERO!C16+ENERO!C16 -> 218 | D16: =+MARZO!D16+FEBRERO!D16+ENERO!D16 -> 0 | E16: =+MARZO!E16+FEBRERO!E16+ENERO!E16 -> 1 | F16: =+MARZO!F16+FEBRERO!F16+ENERO!F16 -> 0 | G16: 219
B17: CONFIRMAR LA IDENTIDAD DEL PACIENTE, EL PROCEDIMIENTO Y EL SITIO QUIRUGICO | C17: =+MARZO!C17+FEBRERO!C17+ENERO!C17 -> 218 | D17: =+MARZO!D17+FEBRERO!D17+ENERO!D17 -> 0 | E17: =+MARZO!E17+FEBRERO!E17+ENERO!E17 -> 1 | F17: =+MARZO!F17+FEBRERO!F17+ENERO!F17 -> 0 | G17: 219
B18: CONFIRMAR SI TODOS LOS MIEMBROS DEL EQUIPO HAN CUMPLIDO CORRECTAMENTE CON EL PROTOCOLO DE AS | C18: =+MARZO!C18+FEBRERO!C18+ENERO!C18 -> 218 | D18: =+MARZO!D18+FEBRERO!D18+ENERO!D18 -> 0 | E18: =+MARZO!E18+FEBRERO!E18+ENERO!E18 -> 1 | F18: =+MARZO!F18+FEBRERO!F18+ENERO!F18 -> 0 | G18: 219
B19: SE HA ADMINISTRADO PROFILAXIS CON ANTIBIOTICOS EN LOS ULTIMOS 60 MINUTOS | C19: =+MARZO!C19+FEBRERO!C19+ENERO!C19 -> 209 | D19: =+MARZO!D19+FEBRERO!D19+ENERO!D19 -> 7 | E19: =+MARZO!E19+FEBRERO!E19+ENERO!E19 -> 1 | F19: =+MARZO!F19+FEBRERO!F19+ENERO!F19 -> 2 | G19: 219 | I19: =SUM(C16,C17,C18,C19,C20,,C22,D23,C24,D25,C26) -> 1869 | J19: =I19/$I$21 -> 0.9284649776
B20: ¿CUALES SON LOS PASOS CRITICOS O INESPERADO? | C20: =+MARZO!C20+FEBRERO!C20+ENERO!C20 -> 95 | D20: =+MARZO!D20+FEBRERO!D20+ENERO!D20 -> 118 | E20: =+MARZO!E20+FEBRERO!E20+ENERO!E20 -> 6 | F20: =+MARZO!F20+FEBRERO!F20+ENERO!F20 -> 0 | G20: 219 | I20: =SUM(D16,D17,D18,D19,D20,D21,D22,C23,D24,C25,D26) -> 144 | J20: =I20/$I$21 -> 0.07153502235
B21: ¿CUANTO DURARA LA OPERACIÓN? | C21: =+MARZO!C21+FEBRERO!C21+ENERO!C21 -> 216 | D21: =+MARZO!D21+FEBRERO!D21+ENERO!D21 -> 1 | E21: =+MARZO!E21+FEBRERO!E21+ENERO!E21 -> 2 | F21: =+MARZO!F21+FEBRERO!F21+ENERO!F21 -> 0 | G21: 219 | I21: =SUM(I19:I20) -> 2013
B22: ¿CUANTO ES LA PERDIDA DE SALGRE PREVISTA? | C22: =+MARZO!C22+FEBRERO!C22+ENERO!C22 -> 209 | D22: =+MARZO!D22+FEBRERO!D22+ENERO!D22 -> 5 | E22: =+MARZO!E22+FEBRERO!E22+ENERO!E22 -> 5 | F22: =+MARZO!F22+FEBRERO!F22+ENERO!F22 -> 0 | G22: 219
B23: ¿PRESENTA EL PACIENTE ALGUN PROBLEMA ESPECIFICO? | C23: =+MARZO!C23+FEBRERO!C23+ENERO!C23 -> 8 | D23: =+MARZO!D23+FEBRERO!D23+ENERO!D23 -> 208 | E23: =+MARZO!E23+FEBRERO!E23+ENERO!E23 -> 3 | F23: =+MARZO!F23+FEBRERO!F23+ENERO!F23 -> 0 | G23: 219
B24: ¿SE HA CONFIRMADO LA ESTERILIDAD DE ROPA, INSTRUMENTAL Y EQUIPOS? | C24: =+MARZO!C24+FEBRERO!C24+ENERO!C24 -> 215 | D24: =+MARZO!D24+FEBRERO!D24+ENERO!D24 -> 2 | E24: =+MARZO!E24+FEBRERO!E24+ENERO!E24 -> 2 | F24: =+MARZO!F24+FEBRERO!F24+ENERO!F24 -> 0 | G24: 219
B25: ¿HAY DUDAS O PROBLEMAS RELACIONADOS CON ELLOS? | C25: =+MARZO!C25+FEBRERO!C25+ENERO!C25 -> 1 | D25: =+MARZO!D25+FEBRERO!D25+ENERO!D25 -> 214 | E25: =+MARZO!E25+FEBRERO!E25+ENERO!E25 -> 4 | F25: =+MARZO!F25+FEBRERO!F25+ENERO!F25 -> 0 | G25: 219
B26: ¿PUEDEN VISUALIZARSE LAS IMÁGENES DIAGNOSTICADAS ESENCIALES? | C26: =+MARZO!C26+FEBRERO!C26+ENERO!C26 -> 65 | D26: =+MARZO!D26+FEBRERO!D26+ENERO!D26 -> 2 | E26: =+MARZO!E26+FEBRERO!E26+ENERO!E26 -> 4 | F26: =+MARZO!F26+FEBRERO!F26+ENERO!F26 -> 148 | G26: 219
A27: SALIDA | B27: EL ENFERMERO CONFIRMA VERBALMENTE EL NOMBRE DEL PROCEDIMIENTO | C27: =+MARZO!C27+FEBRERO!C27+ENERO!C27 -> 218 | D27: =+MARZO!D27+FEBRERO!D27+ENERO!D27 -> 0 | E27: =+MARZO!E27+FEBRERO!E27+ENERO!E27 -> 1 | F27: =+MARZO!F27+FEBRERO!F27+ENERO!F27 -> 0 | G27: 219
B28: EL RECUENTO DE INSTRUMENTOS, GASA Y AGUJAS | C28: =+MARZO!C28+FEBRERO!C28+ENERO!C28 -> 218 | D28: =+MARZO!D28+FEBRERO!D28+ENERO!D28 -> 0 | E28: =+MARZO!E28+FEBRERO!E28+ENERO!E28 -> 1 | F28: =+MARZO!F28+FEBRERO!F28+ENERO!F28 -> 0 | G28: 219 | I28: =SUM(C27,C28,C29,C30,C31,D32) -> 687 | J28: =I28/$I$30 -> 0.661849711
B29: EL ETIQUETADO DE LAS MUESTRAS (LECTURA DE LA ETIQUETA EN VOZ ALTA, INCLUIDO EL NOMBRE DEL PACIENTE | C29: =+MARZO!C29+FEBRERO!C29+ENERO!C29 -> 33 | D29: =+MARZO!D29+FEBRERO!D29+ENERO!D29 -> 135 | E29: =+MARZO!E29+FEBRERO!E29+ENERO!E29 -> 8 | F29: =+MARZO!F29+FEBRERO!F29+ENERO!F29 -> 43 | G29: 219 | I29: =SUM(D27,D28,D29,D30,D31,C32) -> 351 | J29: =I29/$I$30 -> 0.338150289
B30: SI HAY PROBLEMAS QUE SE RESUELVE RELACIONADOS CON EL INSTRUMENTAL Y LOS EQUIPOS | C30: =+MARZO!C30+FEBRERO!C30+ENERO!C30 -> 1 | D30: =+MARZO!D30+FEBRERO!D30+ENERO!D30 -> 216 | E30: =+MARZO!E30+FEBRERO!E30+ENERO!E30 -> 2 | F30: =+MARZO!F30+FEBRERO!F30+ENERO!F30 -> 0 | G30: 219 | I30: =SUM(I28:I29) -> 1038
B31: (CIRUJANO, ANESTESIOLOGO, ENFERMERO) CUALES SON LOS ASPECTOS CRITICOS DE LA RECUPERACION Y EL TRAMITE | C31: =+MARZO!C31+FEBRERO!C31+ENERO!C31 -> 217 | D31: =+MARZO!D31+FEBRERO!D31+ENERO!D31 -> 0 | E31: =+MARZO!E31+FEBRERO!E31+ENERO!E31 -> 2 | F31: =+MARZO!F31+FEBRERO!F31+ENERO!F31 -> 0 | G31: 219
B32: OBSERVACIONES | C32: =+MARZO!C32+FEBRERO!C32+ENERO!C32 -> 0 | D32: =+MARZO!D32+FEBRERO!D32+ENERO!D32 -> 0 | E32: =+MARZO!E32+FEBRERO!E32+ENERO!E32 -> 219 | F32: =+MARZO!F32+FEBRERO!F32+ENERO!F32 -> 0 | G32: 219
A33: FIRMA | B33: FIRMA DEL CIRUJANO | C33: =+MARZO!C33+FEBRERO!C33+ENERO!C33 -> 215 | D33: =+MARZO!D33+FEBRERO!D33+ENERO!D33 -> 4 | E33: =+MARZO!E33+FEBRERO!E33+ENERO!E33 -> 0 | F33: =+MARZO!F33+FEBRERO!F33+ENERO!F33 -> 0 | G33: 219
B34: FIRMA DEL ANESTESIOLOGO | C34: =+MARZO!C34+FEBRERO!C34+ENERO!C34 -> 217 | D34: =+MARZO!D34+FEBRERO!D34+ENERO!D34 -> 2 | E34: =+MARZO!E34+FEBRERO!E34+ENERO!E34 -> 0 | F34: =+MARZO!F34+FEBRERO!F34+ENERO!F34 -> 0 | G34: 219
B35: FIRMA DE LA ENFERMERA | C35: =+MARZO!C35+FEBRERO!C35+ENERO!C35 -> 219 | D35: =+MARZO!D35+FEBRERO!D35+ENERO!D35 -> 0 | E35: =+MARZO!E35+FEBRERO!E35+ENERO!E35 -> 0 | F35: =+MARZO!F35+FEBRERO!F35+ENERO!F35 -> 0 | G35: 219 | I35: =SUM(C33,C34,C35,C36,C37,C38,C39) -> 1407 | J35: =I35/$I$37 -> 0.9178082192
B36: FIRMA DEL COORDINADOR | C36: =+MARZO!C36+FEBRERO!C36+ENERO!C36 -> 100 | D36: =+MARZO!D36+FEBRERO!D36+ENERO!D36 -> 119 | E36: =+MARZO!E36+FEBRERO!E36+ENERO!E36 -> 0 | F36: =+MARZO!F36+FEBRERO!F36+ENERO!F36 -> 0 | G36: 219 | I36: =SUM(D33,D34,D35,D36,D37,,D38,D39) -> 126 | J36: =I36/$I$37 -> 0.08219178082
B37: NRO DE HISTORIA CLINICA | C37: =+MARZO!C37+FEBRERO!C37+ENERO!C37 -> 218 | D37: =+MARZO!D37+FEBRERO!D37+ENERO!D37 -> 1 | E37: =+MARZO!E37+FEBRERO!E37+ENERO!E37 -> 0 | F37: =+MARZO!F37+FEBRERO!F37+ENERO!F37 -> 0 | G37: 219 | I37: =SUM(I35:I36) -> 1533
B38: NOMBRE Y APELLIDOS DEL PACIENTE | C38: =+MARZO!C38+FEBRERO!C38+ENERO!C38 -> 219 | D38: =+MARZO!D38+FEBRERO!D38+ENERO!D38 -> 0 | E38: =+MARZO!E38+FEBRERO!E38+ENERO!E38 -> 0 | F38: =+MARZO!F38+FEBRERO!F38+ENERO!F38 -> 0 | G38: 219
B39: FECHA | C39: =+MARZO!C39+FEBRERO!C39+ENERO!C39 -> 219 | D39: =+MARZO!D39+FEBRERO!D39+ENERO!D39 -> 0 | E39: =+MARZO!E39+FEBRERO!E39+ENERO!E39 -> 0 | F39: =+MARZO!F39+FEBRERO!F39+ENERO!F39 -> 0 | G39: 219
B45: PORCENTAJE DE CUMPLIMIENTO DE LA LISTA DE VERIFICACION DE CIRUGIA SEGURA
C51: ENTRADA | D51: (+) | E51: =J8 -> 0.8376344086
D52: (-) | E52: =J9 -> 0.1623655914
C53: PAUSA | D53: (+) | E53: =J19 -> 0.9284649776 | M53: Cumplimiento
D54: (-) | E54: =J20 -> 0.07153502235 | L54: Entrada | M54: =E51 -> 0.8376344086
C55: SALIDA | D55: (+) | E55: =J28 -> 0.661849711 | L55: Pausa | M55: =E53 -> 0.9284649776
D56: (-) | E56: =J29 -> 0.338150289 | L56: Salida | M56: =E55 -> 0.661849711
C57: FIRMA | D57: (+) | E57: =J35 -> 0.9178082192 | L57: Firmas | M57: =E57 -> 0.9178082192
D58: (-) | E58: =J36 -> 0.08219178082 | L58: Cumplimiento | M58: =AVERAGE(M54:M57) -> 0.8364393291
C59: CUMPLIMIENTO | E59: =M58 -> 0.8364393291

Sheet ABRIL
B4: REGISTRO DE LA LISTA DE VERIFICACION DE CIRUGIA SEGURA
B5: AÑO: U.E.408 HOSPITAL DE ESPINAR -ABRIL 2022 | E5: NO REGISTRA | F5: NO PRECEDE
C6: SI | D6: NO | E6: NR | F6: NP | G6: TOTAL
A7: ENTRADA | B7: PACIENTE CONFIRMA SU IDENTIDAD, EL SITIO QUIRUGICO, EL PROCEDIMIENTO Y CONSENTIMIENTO | G7: =SUM(C7:F7) -> 0
B8: SE HA MARCADO EL SITIO QUIRURGICO | G8: =SUM(C8:F8) -> 0 | I8: =SUM(C7,C8,C9,C10,D11,D12,C13,D14,C15) -> 0 | J8: =I8/$I$10 -> 
B9: SE COMPROBO LA DISPONIBILIDAD DE LOS EQUIPOS DE ANESTESIA Y LA MEDICACION ANESTESICA | G9: 0 | I9: =SUM(D7,D8,D9,D10,C11,C12,D13,C14,D15) -> 0 | J9: =I9/$I$10 -> 
B10: SE COLOCO EL PULXIOMETRO AL PACIENTE Y FUNCIONA | G10: 0 | I10: =SUM(I8:I9) -> 0
B11: EL PACIENTE TIENE ALERGIAS | G11: 0
B12: VIA AEREA DIFICIL / RIESGO DE ASPIRACION | G12: 0
B13: HAY INSTRUMENTAL Y EQUIPO DISPONIBLE | G13: 0
B14: RIESGO DE HEMORRAGIA MENOR A 500 ML | G14: 0
B15: SE HA PREVISTO DISPONIBILIDAD DE COMPONENTE SANGUINEO EN BANCO DE SANGRE | G15: 0
A16: PAUSA | B16: CONFIRMAR QUE TODOS LOS MIEMBROS DEL EQUIPO PROGRAMADOS SE HAYAN PRESENTADO POR SU NOMBRE | G16: 0
B17: CONFIRMAR LA IDENTIDAD DEL PACIENTE, EL PROCEDIMIENTO Y EL SITIO QUIRUGICO | G17: 0
B18: CONFIRMAR SI TODOS LOS MIEMBROS DEL EQUIPO HAN CUMPLIDO CORRECTAMENTE CON EL PROTOCOLO DE AS | G18: 0
B19: SE HA ADMINISTRADO PROFILAXIS CON ANTIBIOTICOS EN LOS ULTIMOS 60 MINUTOS | G19: 0 | I19: =SUM(C16,C17,C18,C19,C20,,C22,D23,C24,D25,C26) -> 0 | J19: =I19/$I$21 -> 
B20: ¿CUALES SON LOS PASOS CRITICOS O INESPERADO? | G20: 0 | I20: =SUM(D16,D17,D18,D19,D20,D21,D22,C23,D24,C25,D26) -> 0 | J20: =I20/$I$21 -> 
B21: ¿CUANTO DURARA LA OPERACIÓN? | G21: 0 | I21: =SUM(I19:I20) -> 0
B22: ¿CUANTO ES LA PERDIDA DE SALGRE PREVISTA? | G22: 0
B23: ¿PRESENTA EL PACIENTE ALGUN PROBLEMA ESPECIFICO? | G23: 0
B24: ¿SE HA CONFIRMADO LA ESTERILIDAD DE ROPA, INSTRUMENTAL Y EQUIPOS? | G24: 0
B25: ¿HAY DUDAS O PROBLEMAS RELACIONADOS CON ELLOS? | G25: 0
B26: ¿PUEDEN VISUALIZARSE LAS IMÁGENES DIAGNOSTICADAS ESENCIALES? | G26: 0
A27: SALIDA | B27: EL ENFERMERO CONFIRMA VERBALMENTE EL NOMBRE DEL PROCEDIMIENTO | G27: 0
B28: EL RECUENTO DE INSTRUMENTOS, GASA Y AGUJAS | G28: 0 | I28: =SUM(C27,C28,C29,C30,C31,D32) -> 0 | J28: =I28/$I$30 -> 
B29: EL ETIQUETADO DE LAS MUESTRAS (LECTURA DE LA ETIQUETA EN VOZ ALTA, INCLUIDO EL NOMBRE DEL PACIENTE | G29: 0 | I29: =SUM(D27,D28,D29,D30,D31,C32) -> 0 | J29: =I29/$I$30 -> 
B30: SI HAY PROBLEMAS QUE SE RESUELVE RELACIONADOS CON EL INSTRUMENTAL Y LOS EQUIPOS | G30: 0 | I30: =SUM(I28:I29) -> 0
B31: (CIRUJANO, ANESTESIOLOGO, ENFERMERO) CUALES SON LOS ASPECTOS CRITICOS DE LA RECUPERACION Y EL TRAMITE | G31: 0
B32: OBSERVACIONES | G32: 0
A33: FIRMA | B33: FIRMA DEL CIRUJANO | G33: 0
B34: FIRMA DEL ANESTESIOLOGO | G34: 0
B35: FIRMA DE LA ENFERMERA | G35: 0 | I35: =SUM(C33,C34,C35,C36,C37,C38,C39) -> 0 | J35: =I35/$I$37 -> 
B36: FIRMA DEL COORDINADOR | G36: 0 | I36: =SUM(D33,D34,D35,D36,D37,,D38,D39) -> 0 | J36: =I36/$I$37 -> 
B37: NRO DE HISTORIA CLINICA | G37: 0 | I37: =SUM(I35:I36) -> 0
B38: NOMBRE Y APELLIDOS DEL PACIENTE | G38: 0
B39: FECHA | G39: 0
B45: PORCENTAJE DE CUMPLIMIENTO DE LA LISTA DE VERIFICACION DE CIRUGIA SEGURA
C51: ENTRADA | D51: (+) | E51: =J8 -> 
D52: (-) | E52: =J9 -> 
C53: PAUSA | D53: (+) | E53: =J19 ->  | M53: Cumplimiento
D54: (-) | E54: =J20 ->  | L54: Entrada | M54: =E51 -> 
C55: SALIDA | D55: (+) | E55: =J28 ->  | L55: Pausa | M55: =E53 -> 
D56: (-) | E56: =J29 ->  | L56: Salida | M56: =E55 -> 
C57: FIRMA | D57: (+) | E57: =J35 ->  | L57: Firmas | M57: =E57 -> 
D58: (-) | E58: =J36 ->  | L58: Cumplimiento | M58: =AVERAGE(M54:M57) -> 
C59: CUMPLIMIENTO | E59: =M58 -> 

Sheet MAYO
B4: REGISTRO DE LA LISTA DE VERIFICACION DE CIRUGIA SEGURA
B5: AÑO: U.E.408 HOSPITAL DE ESPINAR MAYO - 2022 | E5: NO REGISTRA | F5: NO PRECEDE
C6: SI | D6: NO | E6: NR | F6: NP | G6: TOTAL
A7: ENTRADA | B7: PACIENTE CONFIRMA SU IDENTIDAD, EL SITIO QUIRUGICO, EL PROCEDIMIENTO Y CONSENTIMIENTO | G7: =SUM(C7:F7) -> 0
B8: SE HA MARCADO EL SITIO QUIRURGICO | G8: =SUM(C8:F8) -> 0 | I8: =SUM(C7,C8,C9,C10,D11,D12,C13,D14,C15) -> 0 | J8: =I8/$I$10 -> 
B9: SE COMPROBO LA DISPONIBILIDAD DE LOS EQUIPOS DE ANESTESIA Y LA MEDICACION ANESTESICA | G9: 0 | I9: =SUM(D7,D8,D9,D10,C11,C12,D13,C14,D15) -> 0 | J9: =I9/$I$10 -> 
B10: SE COLOCO EL PULXIOMETRO AL PACIENTE Y FUNCIONA | G10: 0 | I10: =SUM(I8:I9) -> 0
B11: EL PACIENTE TIENE ALERGIAS | G11: 0
B12: VIA AEREA DIFICIL / RIESGO DE ASPIRACION | G12: 0
B13: HAY INSTRUMENTAL Y EQUIPO DISPONIBLE | G13: 0
B14: RIESGO DE HEMORRAGIA MENOR A 500 ML | G14: 0
B15: SE HA PREVISTO DISPONIBILIDAD DE COMPONENTE SANGUINEO EN BANCO DE SANGRE | G15: 0
A16: PAUSA | B16: CONFIRMAR QUE TODOS LOS MIEMBROS DEL EQUIPO PROGRAMADOS SE HAYAN PRESENTADO POR SU NOMBRE | G16: 0
B17: CONFIRMAR LA IDENTIDAD DEL PACIENTE, EL PROCEDIMIENTO Y EL SITIO QUIRUGICO | G17: 0
B18: CONFIRMAR SI TODOS LOS MIEMBROS DEL EQUIPO HAN CUMPLIDO CORRECTAMENTE CON EL PROTOCOLO DE AS | G18: 0
B19: SE HA ADMINISTRADO PROFILAXIS CON ANTIBIOTICOS EN LOS ULTIMOS 60 MINUTOS | G19: 0 | I19: =SUM(C16,C17,C18,C19,C20,,C22,D23,C24,D25,C26) -> 0 | J19: =I19/$I$21 -> 
B20: ¿CUALES SON LOS PASOS CRITICOS O INESPERADO? | G20: 0 | I20: =SUM(D16,D17,D18,D19,D20,D21,D22,C23,D24,C25,D26) -> 0 | J20: =I20/$I$21 -> 
B21: ¿CUANTO DURARA LA OPERACIÓN? | G21: 0 | I21: =SUM(I19:I20) -> 0
B22: ¿CUANTO ES LA PERDIDA DE SALGRE PREVISTA? | G22: 0
B23: ¿PRESENTA EL PACIENTE ALGUN PROBLEMA ESPECIFICO? | G23: 0
B24: ¿SE HA CONFIRMADO LA ESTERILIDAD DE ROPA, INSTRUMENTAL Y EQUIPOS? | G24: 0
B25: ¿HAY DUDAS O PROBLEMAS RELACIONADOS CON ELLOS? | G25: 0
B26: ¿PUEDEN VISUALIZARSE LAS IMÁGENES DIAGNOSTICADAS ESENCIALES? | G26: 0
A27: SALIDA | B27: EL ENFERMERO CONFIRMA VERBALMENTE EL NOMBRE DEL PROCEDIMIENTO | G27: 0
B28: EL RECUENTO DE INSTRUMENTOS, GASA Y AGUJAS | G28: 0 | I28: =SUM(C27,C28,C29,C30,C31,D32) -> 0 | J28: =I28/$I$30 -> 
B29: EL ETIQUETADO DE LAS MUESTRAS (LECTURA DE LA ETIQUETA EN VOZ ALTA, INCLUIDO EL NOMBRE DEL PACIENTE | G29: 0 | I29: =SUM(D27,D28,D29,D30,D31,C32) -> 0 | J29: =I29/$I$30 -> 
B30: SI HAY PROBLEMAS QUE SE RESUELVE RELACIONADOS CON EL INSTRUMENTAL Y LOS EQUIPOS | G30: 0 | I30: =SUM(I28:I29) -> 0
B31: (CIRUJANO, ANESTESIOLOGO, ENFERMERO) CUALES SON LOS ASPECTOS CRITICOS DE LA RECUPERACION Y EL TRAMITE | G31: 0
B32: OBSERVACIONES | G32: 0
A33: FIRMA | B33: FIRMA DEL CIRUJANO | G33: 0
B34: FIRMA DEL ANESTESIOLOGO | G34: 0
B35: FIRMA DE LA ENFERMERA | G35: 0 | I35: =SUM(C33,C34,C35,C36,C37,C38,C39) -> 0 | J35: =I35/$I$37 -> 
B36: FIRMA DEL COORDINADOR | G36: 0 | I36: =SUM(D33,D34,D35,D36,D37,,D38,D39) -> 0 | J36: =I36/$I$37 -> 
B37: NRO DE HISTORIA CLINICA | G37: 0 | I37: =SUM(I35:I36) -> 0
B38: NOMBRE Y APELLIDOS DEL PACIENTE | G38: 0
B39: FECHA | G39: 0
B45: PORCENTAJE DE CUMPLIMIENTO DE LA LISTA DE VERIFICACION DE CIRUGIA SEGURA
C51: ENTRADA | D51: (+) | E51: =J8 -> 
D52: (-) | E52: =J9 -> 
C53: PAUSA | D53: (+) | E53: =J19 ->  | M53: Cumplimiento
D54: (-) | E54: =J20 ->  | L54: Entrada | M54: =E51 -> 
C55: SALIDA | D55: (+) | E55: =J28 ->  | L55: Pausa | M55: =E53 -> 
D56: (-) | E56: =J29 ->  | L56: Salida | M56: =E55 -> 
C57: FIRMA | D57: (+) | E57: =J35 ->  | L57: Firmas | M57: =E57 -> 
D58: (-) | E58: =J36 ->  | L58: Cumplimiento | M58: =AVERAGE(M54:M57) -> 
C59: CUMPLIMIENTO | E59: =M58 -> 

Sheet JUNIO
B4: REGISTRO DE LA LISTA DE VERIFICACION DE CIRUGIA SEGURA
B5: AÑO: U.E.408 HOSPITAL DE ESPINAR JUNIO - 2022 | E5: NO REGISTRA | F5: NO PRECEDE
C6: SI | D6: NO | E6: NR | F6: NP | G6: TOTAL
A7: ENTRADA | B7: PACIENTE CONFIRMA SU IDENTIDAD, EL SITIO QUIRUGICO, EL PROCEDIMIENTO Y CONSENTIMIENTO | G7: =SUM(C7:F7) -> 0
B8: SE HA MARCADO EL SITIO QUIRURGICO | G8: =SUM(C8:F8) -> 0 | I8: =SUM(C7,C8,C9,C10,D11,D12,C13,D14,C15) -> 0 | J8: =I8/$I$10 -> 
B9: SE COMPROBO LA DISPONIBILIDAD DE LOS EQUIPOS DE ANESTESIA Y LA MEDICACION ANESTESICA | G9: 0 | I9: =SUM(D7,D8,D9,D10,C11,C12,D13,C14,D15) -> 0 | J9: =I9/$I$10 -> 
B10: SE COLOCO EL PULXIOMETRO AL PACIENTE Y FUNCIONA | G10: 0 | I10: =SUM(I8:I9) -> 0
B11: EL PACIENTE TIENE ALERGIAS | G11: 0
B12: VIA AEREA DIFICIL / RIESGO DE ASPIRACION | G12: 0
B13: HAY INSTRUMENTAL Y EQUIPO DISPONIBLE | G13: 0
B14: RIESGO DE HEMORRAGIA MENOR A 500 ML | G14: 0
B15: SE HA PREVISTO DISPONIBILIDAD DE COMPONENTE SANGUINEO EN BANCO DE SANGRE | G15: 0
A16: PAUSA | B16: CONFIRMAR QUE TODOS LOS MIEMBROS DEL EQUIPO PROGRAMADOS SE HAYAN PRESENTADO POR SU NOMBRE | G16: 0
B17: CONFIRMAR LA IDENTIDAD DEL PACIENTE, EL PROCEDIMIENTO Y EL SITIO QUIRUGICO | G17: 0
B18: CONFIRMAR SI TODOS LOS MIEMBROS DEL EQUIPO HAN CUMPLIDO CORRECTAMENTE CON EL PROTOCOLO DE AS | G18: 0
B19: SE HA ADMINISTRADO PROFILAXIS CON ANTIBIOTICOS EN LOS ULTIMOS 60 MINUTOS | G19: 0 | I19: =SUM(C16,C17,C18,C19,C20,,C22,D23,C24,D25,C26) -> 0 | J19: =I19/$I$21 -> 
B20: ¿CUALES SON LOS PASOS CRITICOS O INESPERADO? | G20: 0 | I20: =SUM(D16,D17,D18,D19,D20,D21,D22,C23,D24,C25,D26) -> 0 | J20: =I20/$I$21 -> 
B21: ¿CUANTO DURARA LA OPERACIÓN? | G21: 0 | I21: =SUM(I19:I20) -> 0
B22: ¿CUANTO ES LA PERDIDA DE SALGRE PREVISTA? | G22: 0
B23: ¿PRESENTA EL PACIENTE ALGUN PROBLEMA ESPECIFICO? | G23: 0
B24: ¿SE HA CONFIRMADO LA ESTERILIDAD DE ROPA, INSTRUMENTAL Y EQUIPOS? | G24: 0
B25: ¿HAY DUDAS O PROBLEMAS RELACIONADOS CON ELLOS? | G25: 0
B26: ¿PUEDEN VISUALIZARSE LAS IMÁGENES DIAGNOSTICADAS ESENCIALES? | G26: 0
A27: SALIDA | B27: EL ENFERMERO CONFIRMA VERBALMENTE EL NOMBRE DEL PROCEDIMIENTO | G27: 0
B28: EL RECUENTO DE INSTRUMENTOS, GASA Y AGUJAS | G28: 0 | I28: =SUM(C27,C28,C29,C30,C31,D32) -> 0 | J28: =I28/$I$30 -> 
B29: EL ETIQUETADO DE LAS MUESTRAS (LECTURA DE LA ETIQUETA EN VOZ ALTA, INCLUIDO EL NOMBRE DEL PACIENTE | G29: 0 | I29: =SUM(D27,D28,D29,D30,D31,C32) -> 0 | J29: =I29/$I$30 -> 
B30: SI HAY PROBLEMAS QUE SE RESUELVE RELACIONADOS CON EL INSTRUMENTAL Y LOS EQUIPOS | G30: 0 | I30: =SUM(I28:I29) -> 0
B31: (CIRUJANO, ANESTESIOLOGO, ENFERMERO) CUALES SON LOS ASPECTOS CRITICOS DE LA RECUPERACION Y EL TRAMITE | G31: 0
B32: OBSERVACIONES | G32: 0
A33: FIRMA | B33: FIRMA DEL CIRUJANO | G33: 0
B34: FIRMA DEL ANESTESIOLOGO | G34: 0
B35: FIRMA DE LA ENFERMERA | G35: 0 | I35: =SUM(C33,C34,C35,C36,C37,C38,C39) -> 0 | J35: =I35/$I$37 -> 
B36: FIRMA DEL COORDINADOR | G36: 0 | I36: =SUM(D33,D34,D35,D36,D37,,D38,D39) -> 0 | J36: =I36/$I$37 -> 
B37: NRO DE HISTORIA CLINICA | G37: 0 | I37: =SUM(I35:I36) -> 0
B38: NOMBRE Y APELLIDOS DEL PACIENTE | G38: 0
B39: FECHA | G39: 0
B45: PORCENTAJE DE CUMPLIMIENTO DE LA LISTA DE VERIFICACION DE CIRUGIA SEGURA
C51: ENTRADA | D51: (+) | E51: =J8 -> 
D52: (-) | E52: =J9 -> 
C53: PAUSA | D53: (+) | E53: =J19 ->  | M53: Cumplimiento
D54: (-) | E54: =J20 ->  | L54: Entrada | M54: =E51 -> 
C55: SALIDA | D55: (+) | E55: =J28 ->  | L55: Pausa | M55: =E53 -> 
D56: (-) | E56: =J29 ->  | L56: Salida | M56: =E55 -> 
C57: FIRMA | D57: (+) | E57: =J35 ->  | L57: Firmas | M57: =E57 -> 
D58: (-) | E58: =J36 ->  | L58: Cumplimiento | M58: =AVERAGE(M54:M57) -> 
C59: CUMPLIMIENTO | E59: =M58 -> 

Sheet JULIO
B4: REGISTRO DE LA LISTA DE VERIFICACION DE CIRUGIA SEGURA
B5: AÑO: U.E.408 HOSPITAL DE ESPINAR JULIO - 2021 | E5: NO REGISTRA | F5: NO PRECEDE
C6: SI | D6: NO | E6: NR | F6: NP | G6: TOTAL
A7: ENTRADA | B7: PACIENTE CONFIRMA SU IDENTIDAD, EL SITIO QUIRUGICO, EL PROCEDIMIENTO Y CONSENTIMIENTO | G7: =SUM(C7:F7) -> 0
B8: SE HA MARCADO EL SITIO QUIRURGICO | G8: =SUM(C8:F8) -> 0 | I8: =SUM(C7,C8,C9,C10,D11,D12,C13,D14,C15) -> 0 | J8: =I8/$I$10 -> 
B9: SE COMPROBO LA DISPONIBILIDAD DE LOS EQUIPOS DE ANESTESIA Y LA MEDICACION ANESTESICA | G9: 0 | I9: =SUM(D7,D8,D9,D10,C11,C12,D13,C14,D15) -> 0 | J9: =I9/$I$10 -> 
B10: SE COLOCO EL PULXIOMETRO AL PACIENTE Y FUNCIONA | G10: 0 | I10: =SUM(I8:I9) -> 0
B11: EL PACIENTE TIENE ALERGIAS | G11: 0
B12: VIA AEREA DIFICIL / RIESGO DE ASPIRACION | G12: 0
B13: HAY INSTRUMENTAL Y EQUIPO DISPONIBLE | G13: 0
B14: RIESGO DE HEMORRAGIA MENOR A 500 ML | G14: 0
B15: SE HA PREVISTO DISPONIBILIDAD DE COMPONENTE SANGUINEO EN BANCO DE SANGRE | G15: 0
A16: PAUSA | B16: CONFIRMAR QUE TODOS LOS MIEMBROS DEL EQUIPO PROGRAMADOS SE HAYAN PRESENTADO POR SU NOMBRE | G16: 0
B17: CONFIRMAR LA IDENTIDAD DEL PACIENTE, EL PROCEDIMIENTO Y EL SITIO QUIRUGICO | G17: 0
B18: CONFIRMAR SI TODOS LOS MIEMBROS DEL EQUIPO HAN CUMPLIDO CORRECTAMENTE CON EL PROTOCOLO DE AS | G18: 0
B19: SE HA ADMINISTRADO PROFILAXIS CON ANTIBIOTICOS EN LOS ULTIMOS 60 MINUTOS | G19: 0 | I19: =SUM(C16,C17,C18,C19,C20,,C22,D23,C24,D25,C26) -> 0 | J19: =I19/$I$21 -> 
B20: ¿CUALES SON LOS PASOS CRITICOS O INESPERADO? | G20: 0 | I20: =SUM(D16,D17,D18,D19,D20,D21,D22,C23,D24,C25,D26) -> 0 | J20: =I20/$I$21 -> 
B21: ¿CUANTO DURARA LA OPERACIÓN? | G21: 0 | I21: =SUM(I19:I20) -> 0
B22: ¿CUANTO ES LA PERDIDA DE SALGRE PREVISTA? | G22: 0
B23: ¿PRESENTA EL PACIENTE ALGUN PROBLEMA ESPECIFICO? | G23: 0
B24: ¿SE HA CONFIRMADO LA ESTERILIDAD DE ROPA, INSTRUMENTAL Y EQUIPOS? | G24: 0
B25: ¿HAY DUDAS O PROBLEMAS RELACIONADOS CON ELLOS? | G25: 0
B26: ¿PUEDEN VISUALIZARSE LAS IMÁGENES DIAGNOSTICADAS ESENCIALES? | G26: 0
A27: SALIDA | B27: EL ENFERMERO CONFIRMA VERBALMENTE EL NOMBRE DEL PROCEDIMIENTO | G27: 0
B28: EL RECUENTO DE INSTRUMENTOS, GASA Y AGUJAS | G28: 0 | I28: =SUM(C27,C28,C29,C30,C31,D32) -> 0 | J28: =I28/$I$30 -> 
B29: EL ETIQUETADO DE LAS MUESTRAS (LECTURA DE LA ETIQUETA EN VOZ ALTA, INCLUIDO EL NOMBRE DEL PACIENTE | G29: 0 | I29: =SUM(D27,D28,D29,D30,D31,C32) -> 0 | J29: =I29/$I$30 -> 
B30: SI HAY PROBLEMAS QUE SE RESUELVE RELACIONADOS CON EL INSTRUMENTAL Y LOS EQUIPOS | G30: 0 | I30: =SUM(I28:I29) -> 0
B31: (CIRUJANO, ANESTESIOLOGO, ENFERMERO) CUALES SON LOS ASPECTOS CRITICOS DE LA RECUPERACION Y EL TRAMITE | G31: 0
B32: OBSERVACIONES | G32: 0
A33: FIRMA | B33: FIRMA DEL CIRUJANO | G33: 0
B34: FIRMA DEL ANESTESIOLOGO | G34: 0
B35: FIRMA DE LA ENFERMERA | G35: 0 | I35: =SUM(C33,C34,C35,C36,C37,C38,C39) -> 0 | J35: =I35/$I$37 -> 
B36: FIRMA DEL COORDINADOR | G36: 0 | I36: =SUM(D33,D34,D35,D36,D37,,D38,D39) -> 0 | J36: =I36/$I$37 -> 
B37: NRO DE HISTORIA CLINICA | G37: 0 | I37: =SUM(I35:I36) -> 0
B38: NOMBRE Y APELLIDOS DEL PACIENTE | G38: 0
B39: FECHA | G39: 0
B45: PORCENTAJE DE CUMPLIMIENTO DE LA LISTA DE VERIFICACION DE CIRUGIA SEGURA
C51: ENTRADA | D51: (+) | E51: =J8 -> 
D52: (-) | E52: =J9 -> 
C53: PAUSA | D53: (+) | E53: =J19 ->  | M53: Cumplimiento
D54: (-) | E54: =J20 ->  | L54: Entrada | M54: =E51 -> 
C55: SALIDA | D55: (+) | E55: =J28 ->  | L55: Pausa | M55: =E53 -> 
D56: (-) | E56: =J29 ->  | L56: Salida | M56: =E55 -> 
C57: FIRMA | D57: (+) | E57: =J35 ->  | L57: Firmas | M57: =E57 -> 
D58: (-) | E58: =J36 ->  | L58: Cumplimiento | M58: =AVERAGE(M54:M57) -> 
C59: CUMPLIMIENTO | E59: =M58 -> 

Sheet AGOSTO
B4: REGISTRO DE LA LISTA DE VERIFICACION DE CIRUGIA SEGURA
B5: AÑO: U.E.408 HOSPITAL DE ESPINAR AGOSTO - 2021 | E5: NO REGISTRA | F5: NO PRECEDE
C6: SI | D6: NO | E6: NR | F6: NP | G6: TOTAL
A7: ENTRADA | B7: PACIENTE CONFIRMA SU IDENTIDAD, EL SITIO QUIRUGICO, EL PROCEDIMIENTO Y CONSENTIMIENTO | G7: =SUM(C7:F7) -> 0
B8: SE HA MARCADO EL SITIO QUIRURGICO | G8: =SUM(C8:F8) -> 0 | I8: =SUM(C7,C8,C9,C10,D11,D12,C13,D14,C15) -> 0 | J8: =I8/$I$10 -> 
B9: SE COMPROBO LA DISPONIBILIDAD DE LOS EQUIPOS DE ANESTESIA Y LA MEDICACION ANESTESICA | G9: 0 | I9: =SUM(D7,D8,D9,D10,C11,C12,D13,C14,D15) -> 0 | J9: =I9/$I$10 -> 
B10: SE COLOCO EL PULXIOMETRO AL PACIENTE Y FUNCIONA | G10: 0 | I10: =SUM(I8:I9) -> 0
B11: EL PACIENTE TIENE ALERGIAS | G11: 0
B12: VIA AEREA DIFICIL / RIESGO DE ASPIRACION | G12: 0
B13: HAY INSTRUMENTAL Y EQUIPO DISPONIBLE | G13: 0
B14: RIESGO DE HEMORRAGIA MENOR A 500 ML | G14: 0
B15: SE HA PREVISTO DISPONIBILIDAD DE COMPONENTE SANGUINEO EN BANCO DE SANGRE | G15: 0
A16: PAUSA | B16: CONFIRMAR QUE TODOS LOS MIEMBROS DEL EQUIPO PROGRAMADOS SE HAYAN PRESENTADO POR SU NOMBRE | G16: 0
B17: CONFIRMAR LA IDENTIDAD DEL PACIENTE, EL PROCEDIMIENTO Y EL SITIO QUIRUGICO | G17: 0
B18: CONFIRMAR SI TODOS LOS MIEMBROS DEL EQUIPO HAN CUMPLIDO CORRECTAMENTE CON EL PROTOCOLO DE AS | G18: 0
B19: SE HA ADMINISTRADO PROFILAXIS CON ANTIBIOTICOS EN LOS ULTIMOS 60 MINUTOS | G19: 0 | I19: =SUM(C16,C17,C18,C19,C20,,C22,D23,C24,D25,C26) -> 0 | J19: =I19/$I$21 -> 
B20: ¿CUALES SON LOS PASOS CRITICOS O INESPERADO? | G20: 0 | I20: =SUM(D16,D17,D18,D19,D20,D21,D22,C23,D24,C25,D26) -> 0 | J20: =I20/$I$21 -> 
B21: ¿CUANTO DURARA LA OPERACIÓN? | G21: 0 | I21: =SUM(I19:I20) -> 0
B22: ¿CUANTO ES LA PERDIDA DE SALGRE PREVISTA? | G22: 0
B23: ¿PRESENTA EL PACIENTE ALGUN PROBLEMA ESPECIFICO? | G23: 0
B24: ¿SE HA CONFIRMADO LA ESTERILIDAD DE ROPA, INSTRUMENTAL Y EQUIPOS? | G24: 0
B25: ¿HAY DUDAS O PROBLEMAS RELACIONADOS CON ELLOS? | G25: 0
B26: ¿PUEDEN VISUALIZARSE LAS IMÁGENES DIAGNOSTICADAS ESENCIALES? | G26: 0
A27: SALIDA | B27: EL ENFERMERO CONFIRMA VERBALMENTE EL NOMBRE DEL PROCEDIMIENTO | G27: 0
B28: EL RECUENTO DE INSTRUMENTOS, GASA Y AGUJAS | G28: 0 | I28: =SUM(C27,C28,C29,C30,C31,D32) -> 0 | J28: =I28/$I$30 -> 
B29: EL ETIQUETADO DE LAS MUESTRAS (LECTURA DE LA ETIQUETA EN VOZ ALTA, INCLUIDO EL NOMBRE DEL PACIENTE | G29: 0 | I29: =SUM(D27,D28,D29,D30,D31,C32) -> 0 | J29: =I29/$I$30 -> 
B30: SI HAY PROBLEMAS QUE SE RESUELVE RELACIONADOS CON EL INSTRUMENTAL Y LOS EQUIPOS | G30: 0 | I30: =SUM(I28:I29) -> 0
B31: (CIRUJANO, ANESTESIOLOGO, ENFERMERO) CUALES SON LOS ASPECTOS CRITICOS DE LA RECUPERACION Y EL TRAMITE | G31: 0
B32: OBSERVACIONES | G32: 0
A33: FIRMA | B33: FIRMA DEL CIRUJANO | G33: 0
B34: FIRMA DEL ANESTESIOLOGO | G34: 0
B35: FIRMA DE LA ENFERMERA | G35: 0 | I35: =SUM(C33,C34,C35,C36,C37,C38,C39) -> 0 | J35: =I35/$I$37 -> 
B36: FIRMA DEL COORDINADOR | G36: 0 | I36: =SUM(D33,D34,D35,D36,D37,,D38,D39) -> 0 | J36: =I36/$I$37 -> 
B37: NRO DE HISTORIA CLINICA | G37: 0 | I37: =SUM(I35:I36) -> 0
B38: NOMBRE Y APELLIDOS DEL PACIENTE | G38: 0
B39: FECHA | G39: 0
B45: PORCENTAJE DE CUMPLIMIENTO DE LA LISTA DE VERIFICACION DE CIRUGIA SEGURA
C51: ENTRADA | D51: (+) | E51: =J8 -> 
D52: (-) | E52: =J9 -> 
C53: PAUSA | D53: (+) | E53: =J19 ->  | M53: Cumplimiento
D54: (-) | E54: =J20 ->  | L54: Entrada | M54: =E51 -> 
C55: SALIDA | D55: (+) | E55: =J28 ->  | L55: Pausa | M55: =E53 -> 
D56: (-) | E56: =J29 ->  | L56: Salida | M56: =E55 -> 
C57: FIRMA | D57: (+) | E57: =J35 ->  | L57: Firmas | M57: =E57 -> 
D58: (-) | E58: =J36 ->  | L58: Cumplimiento | M58: =AVERAGE(M54:M57) -> 
C59: CUMPLIMIENTO | E59: =M58 -> 

Sheet SETIEMBRE
B4: REGISTRO DE LA LISTA DE VERIFICACION DE CIRUGIA SEGURA
B5: AÑO: U.E.408 HOSPITAL DE ESPINAR SEPTIEMBRE - 2021 | E5: NO REGISTRA | F5: NO PRECEDE
C6: SI | D6: NO | E6: NR | F6: NP | G6: TOTAL
A7: ENTRADA | B7: PACIENTE CONFIRMA SU IDENTIDAD, EL SITIO QUIRUGICO, EL PROCEDIMIENTO Y CONSENTIMIENTO | G7: =SUM(C7:F7) -> 0
B8: SE HA MARCADO EL SITIO QUIRURGICO | G8: =SUM(C8:F8) -> 0 | I8: =SUM(C7,C8,C9,C10,D11,D12,C13,D14,C15) -> 0 | J8: =I8/$I$10 -> 
B9: SE COMPROBO LA DISPONIBILIDAD DE LOS EQUIPOS DE ANESTESIA Y LA MEDICACION ANESTESICA | G9: 0 | I9: =SUM(D7,D8,D9,D10,C11,C12,D13,C14,D15) -> 0 | J9: =I9/$I$10 -> 
B10: SE COLOCO EL PULXIOMETRO AL PACIENTE Y FUNCIONA | G10: 0 | I10: =SUM(I8:I9) -> 0
B11: EL PACIENTE TIENE ALERGIAS | G11: 0
B12: VIA AEREA DIFICIL / RIESGO DE ASPIRACION | G12: 0
B13: HAY INSTRUMENTAL Y EQUIPO DISPONIBLE | G13: 0
B14: RIESGO DE HEMORRAGIA MENOR A 500 ML | G14: 0
B15: SE HA PREVISTO DISPONIBILIDAD DE COMPONENTE SANGUINEO EN BANCO DE SANGRE | G15: 0
A16: PAUSA | B16: CONFIRMAR QUE TODOS LOS MIEMBROS DEL EQUIPO PROGRAMADOS SE HAYAN PRESENTADO POR SU NOMBRE | G16: 0
B17: CONFIRMAR LA IDENTIDAD DEL PACIENTE, EL PROCEDIMIENTO Y EL SITIO QUIRUGICO | G17: 0
B18: CONFIRMAR SI TODOS LOS MIEMBROS DEL EQUIPO HAN CUMPLIDO CORRECTAMENTE CON EL PROTOCOLO DE AS | G18: 0
B19: SE HA ADMINISTRADO PROFILAXIS CON ANTIBIOTICOS EN LOS ULTIMOS 60 MINUTOS | G19: 0 | I19: =SUM(C16,C17,C18,C19,C20,,C22,D23,C24,D25,C26) -> 0 | J19: =I19/$I$21 -> 
B20: ¿CUALES SON LOS PASOS CRITICOS O INESPERADO? | G20: 0 | I20: =SUM(D16,D17,D18,D19,D20,D21,D22,C23,D24,C25,D26) -> 0 | J20: =I20/$I$21 -> 
B21: ¿CUANTO DURARA LA OPERACIÓN? | G21: 0 | I21: =SUM(I19:I20) -> 0
B22: ¿CUANTO ES LA PERDIDA DE SALGRE PREVISTA? | G22: 0
B23: ¿PRESENTA EL PACIENTE ALGUN PROBLEMA ESPECIFICO? | G23: 0
B24: ¿SE HA CONFIRMADO LA ESTERILIDAD DE ROPA, INSTRUMENTAL Y EQUIPOS? | G24: 0
B25: ¿HAY DUDAS O PROBLEMAS RELACIONADOS CON ELLOS? | G25: 0
B26: ¿PUEDEN VISUALIZARSE LAS IMÁGENES DIAGNOSTICADAS ESENCIALES? | G26: 0
A27: SALIDA | B27: EL ENFERMERO CONFIRMA VERBALMENTE EL NOMBRE DEL PROCEDIMIENTO | G27: 0
B28: EL RECUENTO DE INSTRUMENTOS, GASA Y AGUJAS | G28: 0 | I28: =SUM(C27,C28,C29,C30,C31,D32) -> 0 | J28: =I28/$I$30 -> 
B29: EL ETIQUETADO DE LAS MUESTRAS (LECTURA DE LA ETIQUETA EN VOZ ALTA, INCLUIDO EL NOMBRE DEL PACIENTE | G29: 0 | I29: =SUM(D27,D28,D29,D30,D31,C32) -> 0 | J29: =I29/$I$30 -> 
B30: SI HAY PROBLEMAS QUE SE RESUELVE RELACIONADOS CON EL INSTRUMENTAL Y LOS EQUIPOS | G30: 0 | I30: =SUM(I28:I29) -> 0
B31: (CIRUJANO, ANESTESIOLOGO, ENFERMERO) CUALES SON LOS ASPECTOS CRITICOS DE LA RECUPERACION Y EL TRAMITE | G31: 0
B32: OBSERVACIONES | G32: 0
A33: FIRMA | B33: FIRMA DEL CIRUJANO | G33: 0
B34: FIRMA DEL ANESTESIOLOGO | G34: 0
B35: FIRMA DE LA ENFERMERA | G35: 0 | I35: =SUM(C33,C34,C35,C36,C37,C38,C39) -> 0 | J35: =I35/$I$37 -> 
B36: FIRMA DEL COORDINADOR | G36: 0 | I36: =SUM(D33,D34,D35,D36,D37,,D38,D39) -> 0 | J36: =I36/$I$37 -> 
B37: NRO DE HISTORIA CLINICA | G37: 0 | I37: =SUM(I35:I36) -> 0
B38: NOMBRE Y APELLIDOS DEL PACIENTE | G38: 0
B39: FECHA | G39: 0
B45: PORCENTAJE DE CUMPLIMIENTO DE LA LISTA DE VERIFICACION DE CIRUGIA SEGURA
C51: ENTRADA | D51: (+) | E51: =J8 -> 
D52: (-) | E52: =J9 -> 
C53: PAUSA | D53: (+) | E53: =J19 ->  | M53: Cumplimiento
D54: (-) | E54: =J20 ->  | L54: Entrada | M54: =E51 -> 
C55: SALIDA | D55: (+) | E55: =J28 ->  | L55: Pausa | M55: =E53 -> 
D56: (-) | E56: =J29 ->  | L56: Salida | M56: =E55 -> 
C57: FIRMA | D57: (+) | E57: =J35 ->  | L57: Firmas | M57: =E57 -> 
D58: (-) | E58: =J36 ->  | L58: Cumplimiento | M58: =AVERAGE(M54:M57) -> 
C59: CUMPLIMIENTO | E59: =M58 -> 

Sheet OCTUBRE
B4: REGISTRO DE LA LISTA DE VERIFICACION DE CIRUGIA SEGURA
B5: AÑO: U.E.408 HOSPITAL DE ESPINAR OCTUBRE - 2022 | E5: NO REGISTRA | F5: NO PRECEDE
C6: SI | D6: NO | E6: NR | F6: NP | G6: TOTAL
A7: ENTRADA | B7: PACIENTE CONFIRMA SU IDENTIDAD, EL SITIO QUIRUGICO, EL PROCEDIMIENTO Y CONSENTIMIENTO | G7: =SUM(C7:F7) -> 0
B8: SE HA MARCADO EL SITIO QUIRURGICO | G8: =SUM(C8:F8) -> 0 | I8: =SUM(C7,C8,C9,C10,D11,D12,C13,D14,C15) -> 0 | J8: =I8/$I$10 -> 
B9: SE COMPROBO LA DISPONIBILIDAD DE LOS EQUIPOS DE ANESTESIA Y LA MEDICACION ANESTESICA | G9: 0 | I9: =SUM(D7,D8,D9,D10,C11,C12,D13,C14,D15) -> 0 | J9: =I9/$I$10 -> 
B10: SE COLOCO EL PULXIOMETRO AL PACIENTE Y FUNCIONA | G10: 0 | I10: =SUM(I8:I9) -> 0
B11: EL PACIENTE TIENE ALERGIAS | G11: 0
B12: VIA AEREA DIFICIL / RIESGO DE ASPIRACION | G12: 0
B13: HAY INSTRUMENTAL Y EQUIPO DISPONIBLE | G13: 0
B14: RIESGO DE HEMORRAGIA MENOR A 500 ML | G14: 0
B15: SE HA PREVISTO DISPONIBILIDAD DE COMPONENTE SANGUINEO EN BANCO DE SANGRE | G15: 0
A16: PAUSA | B16: CONFIRMAR QUE TODOS LOS MIEMBROS DEL EQUIPO PROGRAMADOS SE HAYAN PRESENTADO POR SU NOMBRE | G16: 0
B17: CONFIRMAR LA IDENTIDAD DEL PACIENTE, EL PROCEDIMIENTO Y EL SITIO QUIRUGICO | G17: 0
B18: CONFIRMAR SI TODOS LOS MIEMBROS DEL EQUIPO HAN CUMPLIDO CORRECTAMENTE CON EL PROTOCOLO DE AS | G18: 0
B19: SE HA ADMINISTRADO PROFILAXIS CON ANTIBIOTICOS EN LOS ULTIMOS 60 MINUTOS | G19: 0 | I19: =SUM(C16,C17,C18,C19,C20,,C22,D23,C24,D25,C26) -> 0 | J19: =I19/$I$21 -> 
B20: ¿CUALES SON LOS PASOS CRITICOS O INESPERADO? | G20: 0 | I20: =SUM(D16,D17,D18,D19,D20,D21,D22,C23,D24,C25,D26) -> 0 | J20: =I20/$I$21 -> 
B21: ¿CUANTO DURARA LA OPERACIÓN? | G21: 0 | I21: =SUM(I19:I20) -> 0
B22: ¿CUANTO ES LA PERDIDA DE SALGRE PREVISTA? | G22: 0
B23: ¿PRESENTA EL PACIENTE ALGUN PROBLEMA ESPECIFICO? | G23: 0
B24: ¿SE HA CONFIRMADO LA ESTERILIDAD DE ROPA, INSTRUMENTAL Y EQUIPOS? | G24: 0
B25: ¿HAY DUDAS O PROBLEMAS RELACIONADOS CON ELLOS? | G25: 0
B26: ¿PUEDEN VISUALIZARSE LAS IMÁGENES DIAGNOSTICADAS ESENCIALES? | G26: 0
A27: SALIDA | B27: EL ENFERMERO CONFIRMA VERBALMENTE EL NOMBRE DEL PROCEDIMIENTO | G27: 0
B28: EL RECUENTO DE INSTRUMENTOS, GASA Y AGUJAS | G28: 0 | I28: =SUM(C27,C28,C29,C30,C31,D32) -> 0 | J28: =I28/$I$30 -> 
B29: EL ETIQUETADO DE LAS MUESTRAS (LECTURA DE LA ETIQUETA EN VOZ ALTA, INCLUIDO EL NOMBRE DEL PACIENTE | G29: 0 | I29: =SUM(D27,D28,D29,D30,D31,C32) -> 0 | J29: =I29/$I$30 -> 
B30: SI HAY PROBLEMAS QUE SE RESUELVE RELACIONADOS CON EL INSTRUMENTAL Y LOS EQUIPOS | G30: 0 | I30: =SUM(I28:I29) -> 0
B31: (CIRUJANO, ANESTESIOLOGO, ENFERMERO) CUALES SON LOS ASPECTOS CRITICOS DE LA RECUPERACION Y EL TRAMITE | G31: 0
B32: OBSERVACIONES | G32: 0
A33: FIRMA | B33: FIRMA DEL CIRUJANO | G33: 0
B34: FIRMA DEL ANESTESIOLOGO | G34: 0
B35: FIRMA DE LA ENFERMERA | G35: 0 | I35: =SUM(C33,C34,C35,C36,C37,C38,C39) -> 0 | J35: =I35/$I$37 -> 
B36: FIRMA DEL COORDINADOR | G36: 0 | I36: =SUM(D33,D34,D35,D36,D37,,D38,D39) -> 0 | J36: =I36/$I$37 -> 
B37: NRO DE HISTORIA CLINICA | G37: 0 | I37: =SUM(I35:I36) -> 0
B38: NOMBRE Y APELLIDOS DEL PACIENTE | G38: 0
B39: FECHA | G39: 0
B45: PORCENTAJE DE CUMPLIMIENTO DE LA LISTA DE VERIFICACION DE CIRUGIA SEGURA
C51: ENTRADA | D51: (+) | E51: =J8 -> 
D52: (-) | E52: =J9 -> 
C53: PAUSA | D53: (+) | E53: =J19 ->  | M53: Cumplimiento
D54: (-) | E54: =J20 ->  | L54: Entrada | M54: =E51 -> 
C55: SALIDA | D55: (+) | E55: =J28 ->  | L55: Pausa | M55: =E53 -> 
D56: (-) | E56: =J29 ->  | L56: Salida | M56: =E55 -> 
C57: FIRMA | D57: (+) | E57: =J35 ->  | L57: Firmas | M57: =E57 -> 
D58: (-) | E58: =J36 ->  | L58: Cumplimiento | M58: =AVERAGE(M54:M57) -> 
C59: CUMPLIMIENTO | E59: =M58 -> 

Sheet NOVIEMBRE
B4: REGISTRO DE LA LISTA DE VERIFICACION DE CIRUGIA SEGURA
B5: AÑO: U.E.408 HOSPITAL DE ESPINAR NOVIEMBRE - 2022 | E5: NO REGISTRA | F5: NO PRECEDE
C6: SI | D6: NO | E6: NR | F6: NP | G6: TOTAL
A7: ENTRADA | B7: PACIENTE CONFIRMA SU IDENTIDAD, EL SITIO QUIRUGICO, EL PROCEDIMIENTO Y CONSENTIMIENTO | G7: =SUM(C7:F7) -> 0
B8: SE HA MARCADO EL SITIO QUIRURGICO | G8: =SUM(C8:F8) -> 0 | I8: =SUM(C7,C8,C9,C10,D11,D12,C13,D14,C15) -> 0 | J8: =I8/$I$10 -> 
B9: SE COMPROBO LA DISPONIBILIDAD DE LOS EQUIPOS DE ANESTESIA Y LA MEDICACION ANESTESICA | G9: 0 | I9: =SUM(D7,D8,D9,D10,C11,C12,D13,C14,D15) -> 0 | J9: =I9/$I$10 -> 
B10: SE COLOCO EL PULXIOMETRO AL PACIENTE Y FUNCIONA | G10: 0 | I10: =SUM(I8:I9) -> 0
B11: EL PACIENTE TIENE ALERGIAS | G11: 0
B12: VIA AEREA DIFICIL / RIESGO DE ASPIRACION | G12: 0
B13: HAY INSTRUMENTAL Y EQUIPO DISPONIBLE | G13: 0
B14: RIESGO DE HEMORRAGIA MENOR A 500 ML | G14: 0
B15: SE HA PREVISTO DISPONIBILIDAD DE COMPONENTE SANGUINEO EN BANCO DE SANGRE | G15: 0
A16: PAUSA | B16: CONFIRMAR QUE TODOS LOS MIEMBROS DEL EQUIPO PROGRAMADOS SE HAYAN PRESENTADO POR SU NOMBRE | G16: 0
B17: CONFIRMAR LA IDENTIDAD DEL PACIENTE, EL PROCEDIMIENTO Y EL SITIO QUIRUGICO | G17: 0
B18: CONFIRMAR SI TODOS LOS MIEMBROS DEL EQUIPO HAN CUMPLIDO CORRECTAMENTE CON EL PROTOCOLO DE AS | G18: 0
B19: SE HA ADMINISTRADO PROFILAXIS CON ANTIBIOTICOS EN LOS ULTIMOS 60 MINUTOS | G19: 0 | I19: =SUM(C16,C17,C18,C19,C20,,C22,D23,C24,D25,C26) -> 0 | J19: =I19/$I$21 -> 
B20: ¿CUALES SON LOS PASOS CRITICOS O INESPERADO? | G20: 0 | I20: =SUM(D16,D17,D18,D19,D20,D21,D22,C23,D24,C25,D26) -> 0 | J20: =I20/$I$21 -> 
B21: ¿CUANTO DURARA LA OPERACIÓN? | G21: 0 | I21: =SUM(I19:I20) -> 0
B22: ¿CUANTO ES LA PERDIDA DE SALGRE PREVISTA? | G22: 0
B23: ¿PRESENTA EL PACIENTE ALGUN PROBLEMA ESPECIFICO? | G23: 0
B24: ¿SE HA CONFIRMADO LA ESTERILIDAD DE ROPA, INSTRUMENTAL Y EQUIPOS? | G24: 0
B25: ¿HAY DUDAS O PROBLEMAS RELACIONADOS CON ELLOS? | G25: 0
B26: ¿PUEDEN VISUALIZARSE LAS IMÁGENES DIAGNOSTICADAS ESENCIALES? | G26: 0
A27: SALIDA | B27: EL ENFERMERO CONFIRMA VERBALMENTE EL NOMBRE DEL PROCEDIMIENTO | G27: 0
B28: EL RECUENTO DE INSTRUMENTOS, GASA Y AGUJAS | G28: 0 | I28: =SUM(C27,C28,C29,C30,C31,D32) -> 0 | J28: =I28/$I$30 -> 
B29: EL ETIQUETADO DE LAS MUESTRAS (LECTURA DE LA ETIQUETA EN VOZ ALTA, INCLUIDO EL NOMBRE DEL PACIENTE | G29: 0 | I29: =SUM(D27,D28,D29,D30,D31,C32) -> 0 | J29: =I29/$I$30 -> 
B30: SI HAY PROBLEMAS QUE SE RESUELVE RELACIONADOS CON EL INSTRUMENTAL Y LOS EQUIPOS | G30: 0 | I30: =SUM(I28:I29) -> 0
B31: (CIRUJANO, ANESTESIOLOGO, ENFERMERO) CUALES SON LOS ASPECTOS CRITICOS DE LA RECUPERACION Y EL TRAMITE | G31: 0
B32: OBSERVACIONES | G32: 0
A33: FIRMA | B33: FIRMA DEL CIRUJANO | G33: 0
B34: FIRMA DEL ANESTESIOLOGO | G34: 0
B35: FIRMA DE LA ENFERMERA | G35: 0 | I35: =SUM(C33,C34,C35,C36,C37,C38,C39) -> 0 | J35: =I35/$I$37 -> 
B36: FIRMA DEL COORDINADOR | G36: 0 | I36: =SUM(D33,D34,D35,D36,D37,,D38,D39) -> 0 | J36: =I36/$I$37 -> 
B37: NRO DE HISTORIA CLINICA | G37: 0 | I37: =SUM(I35:I36) -> 0
B38: NOMBRE Y APELLIDOS DEL PACIENTE | G38: 0
B39: FECHA | G39: 0
B45: PORCENTAJE DE CUMPLIMIENTO DE LA LISTA DE VERIFICACION DE CIRUGIA SEGURA
C51: ENTRADA | D51: (+) | E51: =J8 -> 
D52: (-) | E52: =J9 -> 
C53: PAUSA | D53: (+) | E53: =J19 ->  | M53: Cumplimiento
D54: (-) | E54: =J20 ->  | L54: Entrada | M54: =E51 -> 
C55: SALIDA | D55: (+) | E55: =J28 ->  | L55: Pausa | M55: =E53 -> 
D56: (-) | E56: =J29 ->  | L56: Salida | M56: =E55 -> 
C57: FIRMA | D57: (+) | E57: =J35 ->  | L57: Firmas | M57: =E57 -> 
D58: (-) | E58: =J36 ->  | L58: Cumplimiento | M58: =AVERAGE(M54:M57) -> 
C59: CUMPLIMIENTO | E59: =M58 -> 

Sheet DICIEMBRE
B4: REGISTRO DE LA LISTA DE VERIFICACION DE CIRUGIA SEGURA
B5: AÑO: U.E.408 HOSPITAL DE ESPINAR DICIEMBRE - 2022 | E5: NO REGISTRA | F5: NO PRECEDE
C6: SI | D6: NO | E6: NR | F6: NP | G6: TOTAL
A7: ENTRADA | B7: PACIENTE CONFIRMA SU IDENTIDAD, EL SITIO QUIRUGICO, EL PROCEDIMIENTO Y CONSENTIMIENTO | G7: =SUM(C7:F7) -> 0
B8: SE HA MARCADO EL SITIO QUIRURGICO | G8: =SUM(C8:F8) -> 0 | I8: =SUM(C7,C8,C9,C10,D11,D12,C13,D14,C15) -> 0 | J8: =I8/$I$10 -> 
B9: SE COMPROBO LA DISPONIBILIDAD DE LOS EQUIPOS DE ANESTESIA Y LA MEDICACION ANESTESICA | G9: 0 | I9: =SUM(D7,D8,D9,D10,C11,C12,D13,C14,D15) -> 0 | J9: =I9/$I$10 -> 
B10: SE COLOCO EL PULXIOMETRO AL PACIENTE Y FUNCIONA | G10: 0 | I10: =SUM(I8:I9) -> 0
B11: EL PACIENTE TIENE ALERGIAS | G11: 0
B12: VIA AEREA DIFICIL / RIESGO DE ASPIRACION | G12: 0
B13: HAY INSTRUMENTAL Y EQUIPO DISPONIBLE | G13: 0
B14: RIESGO DE HEMORRAGIA MENOR A 500 ML | G14: 0
B15: SE HA PREVISTO DISPONIBILIDAD DE COMPONENTE SANGUINEO EN BANCO DE SANGRE | G15: 0
A16: PAUSA | B16: CONFIRMAR QUE TODOS LOS MIEMBROS DEL EQUIPO PROGRAMADOS SE HAYAN PRESENTADO POR SU NOMBRE | G16: 0
B17: CONFIRMAR LA IDENTIDAD DEL PACIENTE, EL PROCEDIMIENTO Y EL SITIO QUIRUGICO | G17: 0
B18: CONFIRMAR SI TODOS LOS MIEMBROS DEL EQUIPO HAN CUMPLIDO CORRECTAMENTE CON EL PROTOCOLO DE AS | G18: 0
B19: SE HA ADMINISTRADO PROFILAXIS CON ANTIBIOTICOS EN LOS ULTIMOS 60 MINUTOS | G19: 0 | I19: =SUM(C16,C17,C18,C19,C20,,C22,D23,C24,D25,C26) -> 0 | J19: =I19/$I$21 -> 
B20: ¿CUALES SON LOS PASOS CRITICOS O INESPERADO? | G20: 0 | I20: =SUM(D16,D17,D18,D19,D20,D21,D22,C23,D24,C25,D26) -> 0 | J20: =I20/$I$21 -> 
B21: ¿CUANTO DURARA LA OPERACIÓN? | G21: 0 | I21: =SUM(I19:I20) -> 0
B22: ¿CUANTO ES LA PERDIDA DE SALGRE PREVISTA? | G22: 0
B23: ¿PRESENTA EL PACIENTE ALGUN PROBLEMA ESPECIFICO? | G23: 0
B24: ¿SE HA CONFIRMADO LA ESTERILIDAD DE ROPA, INSTRUMENTAL Y EQUIPOS? | G24: 0
B25: ¿HAY DUDAS O PROBLEMAS RELACIONADOS CON ELLOS? | G25: 0
B26: ¿PUEDEN VISUALIZARSE LAS IMÁGENES DIAGNOSTICADAS ESENCIALES? | G26: 0
A27: SALIDA | B27: EL ENFERMERO CONFIRMA VERBALMENTE EL NOMBRE DEL PROCEDIMIENTO | G27: 0
B28: EL RECUENTO DE INSTRUMENTOS, GASA Y AGUJAS | G28: 0 | I28: =SUM(C27,C28,C29,C30,C31,D32) -> 0 | J28: =I28/$I$30 -> 
B29: EL ETIQUETADO DE LAS MUESTRAS (LECTURA DE LA ETIQUETA EN VOZ ALTA, INCLUIDO EL NOMBRE DEL PACIENTE | G29: 0 | I29: =SUM(D27,D28,D29,D30,D31,C32) -> 0 | J29: =I29/$I$30 -> 
B30: SI HAY PROBLEMAS QUE SE RESUELVE RELACIONADOS CON EL INSTRUMENTAL Y LOS EQUIPOS | G30: 0 | I30: =SUM(I28:I29) -> 0
B31: (CIRUJANO, ANESTESIOLOGO, ENFERMERO) CUALES SON LOS ASPECTOS CRITICOS DE LA RECUPERACION Y EL TRAMITE | G31: 0
B32: OBSERVACIONES | G32: 0
A33: FIRMA | B33: FIRMA DEL CIRUJANO | G33: 0
B34: FIRMA DEL ANESTESIOLOGO | G34: 0
B35: FIRMA DE LA ENFERMERA | G35: 0 | I35: =SUM(C33,C34,C35,C36,C37,C38,C39) -> 0 | J35: =I35/$I$37 -> 
B36: FIRMA DEL COORDINADOR | G36: 0 | I36: =SUM(D33,D34,D35,D36,D37,,D38,D39) -> 0 | J36: =I36/$I$37 -> 
B37: NRO DE HISTORIA CLINICA | G37: 0 | I37: =SUM(I35:I36) -> 0
B38: NOMBRE Y APELLIDOS DEL PACIENTE | G38: 0
B39: FECHA | G39: 0
B45: PORCENTAJE DE CUMPLIMIENTO DE LA LISTA DE VERIFICACION DE CIRUGIA SEGURA
C51: ENTRADA | D51: (+) | E51: =J8 -> 
D52: (-) | E52: =J9 -> 
C53: PAUSA | D53: (+) | E53: =J19 ->  | M53: Cumplimiento
D54: (-) | E54: =J20 ->  | L54: Entrada | M54: =E51 -> 
C55: SALIDA | D55: (+) | E55: =J28 ->  | L55: Pausa | M55: =E53 -> 
D56: (-) | E56: =J29 ->  | L56: Salida | M56: =E55 -> 
C57: FIRMA | D57: (+) | E57: =J35 ->  | L57: Firmas | M57: =E57 -> 
D58: (-) | E58: =J36 ->  | L58: Cumplimiento | M58: =AVERAGE(M54:M57) -> 
C59: CUMPLIMIENTO | E59: =M58 -> 

Sheet Final
B4: REGISTRO DE LA LISTA DE VERIFICACION DE CIRUGIA SEGURA
B5: CONSOLIDADO II TRIMESTRE 2022 | E5: NO REGISTRA | F5: NO PRECEDE
C6: SI | D6: NO | E6: NR | F6: NP | G6: TOTAL
A7: ENTRADA | B7: PACIENTE CONFIRMA SU IDENTIDAD, EL SITIO QUIRUGICO, EL PROCEDIMIENTO Y CONSENTIMIENTO | C7: =SUM(ENERO!C7+#REF!+'I TRIMESTRE 2023'!C7+ABRIL!C7+MAYO!C7+JUNIO!C7+JULIO!C7+AGOSTO!C7+SETIEMBRE!C7+OCTUBRE!C7+NOVIEMBRE!C7+DICIEMBRE!C7) ->  | D7: =SUM(ENERO!D7+#REF!+'I TRIMESTRE 2023'!D7+ABRIL!D7+MAYO!D7+JUNIO!D7+JULIO!D7+AGOSTO!D7+SETIEMBRE!D7+OCTUBRE!D7+NOVIEMBRE!D7+DICIEMBRE!D7) ->  | E7: =SUM(ENERO!E7+#REF!+'I TRIMESTRE 2023'!E7+ABRIL!E7+MAYO!E7+JUNIO!E7+JULIO!E7+AGOSTO!E7+SETIEMBRE!E7+OCTUBRE!E7+NOVIEMBRE!E7+DICIEMBRE!E7) ->  | F7: =SUM(ENERO!F7+#REF!+'I TRIMESTRE 2023'!F7+ABRIL!F7+MAYO!F7+JUNIO!F7+JULIO!F7+AGOSTO!F7+SETIEMBRE!F7+OCTUBRE!F7+NOVIEMBRE!F7+DICIEMBRE!F7) ->  | G7: =SUM(C7:F7) -> 
B8: SE HA MARCADO EL SITIO QUIRURGICO | C8: =SUM(ENERO!C8+#REF!+'I TRIMESTRE 2023'!C8+ABRIL!C8+MAYO!C8+JUNIO!C8+JULIO!C8+AGOSTO!C8+SETIEMBRE!C8+OCTUBRE!C8+NOVIEMBRE!C8+DICIEMBRE!C8) ->  | D8: =SUM(ENERO!D8+#REF!+'I TRIMESTRE 2023'!D8+ABRIL!D8+MAYO!D8+JUNIO!D8+JULIO!D8+AGOSTO!D8+SETIEMBRE!D8+OCTUBRE!D8+NOVIEMBRE!D8+DICIEMBRE!D8) ->  | E8: =SUM(ENERO!E8+#REF!+'I TRIMESTRE 2023'!E8+ABRIL!E8+MAYO!E8+JUNIO!E8+JULIO!E8+AGOSTO!E8+SETIEMBRE!E8+OCTUBRE!E8+NOVIEMBRE!E8+DICIEMBRE!E8) ->  | F8: =SUM(ENERO!F8+#REF!+'I TRIMESTRE 2023'!F8+ABRIL!F8+MAYO!F8+JUNIO!F8+JULIO!F8+AGOSTO!F8+SETIEMBRE!F8+OCTUBRE!F8+NOVIEMBRE!F8+DICIEMBRE!F8) ->  | G8: =SUM(C8:F8) ->  | I8: =SUM(C7,C8,C9,C10,D11,D12,C13,D14,C15) ->  | J8: =I8/$I$10 -> 
B9: SE COMPROBO LA DISPONIBILIDAD DE LOS EQUIPOS DE ANESTESIA Y LA MEDICACION ANESTESICA | C9: =SUM(ENERO!C9+#REF!+'I TRIMESTRE 2023'!C9+ABRIL!C9+MAYO!C9+JUNIO!C9+JULIO!C9+AGOSTO!C9+SETIEMBRE!C9+OCTUBRE!C9+NOVIEMBRE!C9+DICIEMBRE!C9) ->  | D9: =SUM(ENERO!D9+#REF!+'I TRIMESTRE 2023'!D9+ABRIL!D9+MAYO!D9+JUNIO!D9+JULIO!D9+AGOSTO!D9+SETIEMBRE!D9+OCTUBRE!D9+NOVIEMBRE!D9+DICIEMBRE!D9) ->  | E9: =SUM(ENERO!E9+#REF!+'I TRIMESTRE 2023'!E9+ABRIL!E9+MAYO!E9+JUNIO!E9+JULIO!E9+AGOSTO!E9+SETIEMBRE!E9+OCTUBRE!E9+NOVIEMBRE!E9+DICIEMBRE!E9) ->  | F9: =SUM(ENERO!F9+#REF!+'I TRIMESTRE 2023'!F9+ABRIL!F9+MAYO!F9+JUNIO!F9+JULIO!F9+AGOSTO!F9+SETIEMBRE!F9+OCTUBRE!F9+NOVIEMBRE!F9+DICIEMBRE!F9) ->  | I9: =SUM(D7,D8,D9,D10,C11,C12,D13,C14,D15) ->  | J9: =I9/$I$10 -> 
B10: SE COLOCO EL PULXIOMETRO AL PACIENTE Y FUNCIONA | C10: =SUM(ENERO!C10+#REF!+'I TRIMESTRE 2023'!C10+ABRIL!C10+MAYO!C10+JUNIO!C10+JULIO!C10+AGOSTO!C10+SETIEMBRE!C10+OCTUBRE!C10+NOVIEMBRE!C10+DICIEMBRE!C10) ->  | D10: =SUM(ENERO!D10+#REF!+'I TRIMESTRE 2023'!D10+ABRIL!D10+MAYO!D10+JUNIO!D10+JULIO!D10+AGOSTO!D10+SETIEMBRE!D10+OCTUBRE!D10+NOVIEMBRE!D10+DICIEMBRE!D10) ->  | E10: =SUM(ENERO!E10+#REF!+'I TRIMESTRE 2023'!E10+ABRIL!E10+MAYO!E10+JUNIO!E10+JULIO!E10+AGOSTO!E10+SETIEMBRE!E10+OCTUBRE!E10+NOVIEMBRE!E10+DICIEMBRE!E10) ->  | F10: =SUM(ENERO!F10+#REF!+'I TRIMESTRE 2023'!F10+ABRIL!F10+MAYO!F10+JUNIO!F10+JULIO!F10+AGOSTO!F10+SETIEMBRE!F10+OCTUBRE!F10+NOVIEMBRE!F10+DICIEMBRE!F10) ->  | I10: =SUM(I8:I9) -> 
B11: EL PACIENTE TIENE ALERGIAS | C11: =SUM(ENERO!C11+#REF!+'I TRIMESTRE 2023'!C11+ABRIL!C11+MAYO!C11+JUNIO!C11+JULIO!C11+AGOSTO!C11+SETIEMBRE!C11+OCTUBRE!C11+NOVIEMBRE!C11+DICIEMBRE!C11) ->  | D11: =SUM(ENERO!D11+#REF!+'I TRIMESTRE 2023'!D11+ABRIL!D11+MAYO!D11+JUNIO!D11+JULIO!D11+AGOSTO!D11+SETIEMBRE!D11+OCTUBRE!D11+NOVIEMBRE!D11+DICIEMBRE!D11) ->  | E11: =SUM(ENERO!E11+#REF!+'I TRIMESTRE 2023'!E11+ABRIL!E11+MAYO!E11+JUNIO!E11+JULIO!E11+AGOSTO!E11+SETIEMBRE!E11+OCTUBRE!E11+NOVIEMBRE!E11+DICIEMBRE!E11) ->  | F11: =SUM(ENERO!F11+#REF!+'I TRIMESTRE 2023'!F11+ABRIL!F11+MAYO!F11+JUNIO!F11+JULIO!F11+AGOSTO!F11+SETIEMBRE!F11+OCTUBRE!F11+NOVIEMBRE!F11+DICIEMBRE!F11) -> 
B12: VIA AEREA DIFICIL / RIESGO DE ASPIRACION | C12: =SUM(ENERO!C12+#REF!+'I TRIMESTRE 2023'!C12+ABRIL!C12+MAYO!C12+JUNIO!C12+JULIO!C12+AGOSTO!C12+SETIEMBRE!C12+OCTUBRE!C12+NOVIEMBRE!C12+DICIEMBRE!C12) ->  | D12: =SUM(ENERO!D12+#REF!+'I TRIMESTRE 2023'!D12+ABRIL!D12+MAYO!D12+JUNIO!D12+JULIO!D12+AGOSTO!D12+SETIEMBRE!D12+OCTUBRE!D12+NOVIEMBRE!D12+DICIEMBRE!D12) ->  | E12: =SUM(ENERO!E12+#REF!+'I TRIMESTRE 2023'!E12+ABRIL!E12+MAYO!E12+JUNIO!E12+JULIO!E12+AGOSTO!E12+SETIEMBRE!E12+OCTUBRE!E12+NOVIEMBRE!E12+DICIEMBRE!E12) ->  | F12: =SUM(ENERO!F12+#REF!+'I TRIMESTRE 2023'!F12+ABRIL!F12+MAYO!F12+JUNIO!F12+JULIO!F12+AGOSTO!F12+SETIEMBRE!F12+OCTUBRE!F12+NOVIEMBRE!F12+DICIEMBRE!F12) -> 
B13: HAY INSTRUMENTAL Y EQUIPO DISPONIBLE | C13: =SUM(ENERO!C13+#REF!+'I TRIMESTRE 2023'!C13+ABRIL!C13+MAYO!C13+JUNIO!C13+JULIO!C13+AGOSTO!C13+SETIEMBRE!C13+OCTUBRE!C13+NOVIEMBRE!C13+DICIEMBRE!C13) ->  | D13: =SUM(ENERO!D13+#REF!+'I TRIMESTRE 2023'!D13+ABRIL!D13+MAYO!D13+JUNIO!D13+JULIO!D13+AGOSTO!D13+SETIEMBRE!D13+OCTUBRE!D13+NOVIEMBRE!D13+DICIEMBRE!D13) ->  | E13: =SUM(ENERO!E13+#REF!+'I TRIMESTRE 2023'!E13+ABRIL!E13+MAYO!E13+JUNIO!E13+JULIO!E13+AGOSTO!E13+SETIEMBRE!E13+OCTUBRE!E13+NOVIEMBRE!E13+DICIEMBRE!E13) ->  | F13: =SUM(ENERO!F13+#REF!+'I TRIMESTRE 2023'!F13+ABRIL!F13+MAYO!F13+JUNIO!F13+JULIO!F13+AGOSTO!F13+SETIEMBRE!F13+OCTUBRE!F13+NOVIEMBRE!F13+DICIEMBRE!F13) -> 
B14: RIESGO DE HEMORRAGIA MENOR A 500 ML | C14: =SUM(ENERO!C14+#REF!+'I TRIMESTRE 2023'!C14+ABRIL!C14+MAYO!C14+JUNIO!C14+JULIO!C14+AGOSTO!C14+SETIEMBRE!C14+OCTUBRE!C14+NOVIEMBRE!C14+DICIEMBRE!C14) ->  | D14: =SUM(ENERO!D14+#REF!+'I TRIMESTRE 2023'!D14+ABRIL!D14+MAYO!D14+JUNIO!D14+JULIO!D14+AGOSTO!D14+SETIEMBRE!D14+OCTUBRE!D14+NOVIEMBRE!D14+DICIEMBRE!D14) ->  | E14: =SUM(ENERO!E14+#REF!+'I TRIMESTRE 2023'!E14+ABRIL!E14+MAYO!E14+JUNIO!E14+JULIO!E14+AGOSTO!E14+SETIEMBRE!E14+OCTUBRE!E14+NOVIEMBRE!E14+DICIEMBRE!E14) ->  | F14: =SUM(ENERO!F14+#REF!+'I TRIMESTRE 2023'!F14+ABRIL!F14+MAYO!F14+JUNIO!F14+JULIO!F14+AGOSTO!F14+SETIEMBRE!F14+OCTUBRE!F14+NOVIEMBRE!F14+DICIEMBRE!F14) -> 
B15: SE HA PREVISTO DISPONIBILIDAD DE COMPONENTE SANGUINEO EN BANCO DE SANGRE | C15: =SUM(ENERO!C15+#REF!+'I TRIMESTRE 2023'!C15+ABRIL!C15+MAYO!C15+JUNIO!C15+JULIO!C15+AGOSTO!C15+SETIEMBRE!C15+OCTUBRE!C15+NOVIEMBRE!C15+DICIEMBRE!C15) ->  | D15: =SUM(ENERO!D15+#REF!+'I TRIMESTRE 2023'!D15+ABRIL!D15+MAYO!D15+JUNIO!D15+JULIO!D15+AGOSTO!D15+SETIEMBRE!D15+OCTUBRE!D15+NOVIEMBRE!D15+DICIEMBRE!D15) ->  | E15: =SUM(ENERO!E15+#REF!+'I TRIMESTRE 2023'!E15+ABRIL!E15+MAYO!E15+JUNIO!E15+JULIO!E15+AGOSTO!E15+SETIEMBRE!E15+OCTUBRE!E15+NOVIEMBRE!E15+DICIEMBRE!E15) ->  | F15: =SUM(ENERO!F15+#REF!+'I TRIMESTRE 2023'!F15+ABRIL!F15+MAYO!F15+JUNIO!F15+JULIO!F15+AGOSTO!F15+SETIEMBRE!F15+OCTUBRE!F15+NOVIEMBRE!F15+DICIEMBRE!F15) -> 
A16: PAUSA | B16: CONFIRMAR QUE TODOS LOS MIEMBROS DEL EQUIPO PROGRAMADOS SE HAYAN PRESENTADO POR SU NOMBRE | C16: =SUM(ENERO!C16+#REF!+'I TRIMESTRE 2023'!C16+ABRIL!C16+MAYO!C16+JUNIO!C16+JULIO!C16+AGOSTO!C16+SETIEMBRE!C16+OCTUBRE!C16+NOVIEMBRE!C16+DICIEMBRE!C16) ->  | D16: =SUM(ENERO!D16+#REF!+'I TRIMESTRE 2023'!D16+ABRIL!D16+MAYO!D16+JUNIO!D16+JULIO!D16+AGOSTO!D16+SETIEMBRE!D16+OCTUBRE!D16+NOVIEMBRE!D16+DICIEMBRE!D16) ->  | E16: =SUM(ENERO!E16+#REF!+'I TRIMESTRE 2023'!E16+ABRIL!E16+MAYO!E16+JUNIO!E16+JULIO!E16+AGOSTO!E16+SETIEMBRE!E16+OCTUBRE!E16+NOVIEMBRE!E16+DICIEMBRE!E16) ->  | F16: =SUM(ENERO!F16+#REF!+'I TRIMESTRE 2023'!F16+ABRIL!F16+MAYO!F16+JUNIO!F16+JULIO!F16+AGOSTO!F16+SETIEMBRE!F16+OCTUBRE!F16+NOVIEMBRE!F16+DICIEMBRE!F16) -> 
B17: CONFIRMAR LA IDENTIDAD DEL PACIENTE, EL PROCEDIMIENTO Y EL SITIO QUIRUGICO | C17: =SUM(ENERO!C17+#REF!+'I TRIMESTRE 2023'!C17+ABRIL!C17+MAYO!C17+JUNIO!C17+JULIO!C17+AGOSTO!C17+SETIEMBRE!C17+OCTUBRE!C17+NOVIEMBRE!C17+DICIEMBRE!C17) ->  | D17: =SUM(ENERO!D17+#REF!+'I TRIMESTRE 2023'!D17+ABRIL!D17+MAYO!D17+JUNIO!D17+JULIO!D17+AGOSTO!D17+SETIEMBRE!D17+OCTUBRE!D17+NOVIEMBRE!D17+DICIEMBRE!D17) ->  | E17: =SUM(ENERO!E17+#REF!+'I TRIMESTRE 2023'!E17+ABRIL!E17+MAYO!E17+JUNIO!E17+JULIO!E17+AGOSTO!E17+SETIEMBRE!E17+OCTUBRE!E17+NOVIEMBRE!E17+DICIEMBRE!E17) ->  | F17: =SUM(ENERO!F17+#REF!+'I TRIMESTRE 2023'!F17+ABRIL!F17+MAYO!F17+JUNIO!F17+JULIO!F17+AGOSTO!F17+SETIEMBRE!F17+OCTUBRE!F17+NOVIEMBRE!F17+DICIEMBRE!F17) -> 
B18: CONFIRMAR SI TODOS LOS MIEMBROS DEL EQUIPO HAN CUMPLIDO CORRECTAMENTE CON EL PROTOCOLO DE AS | C18: =SUM(ENERO!C18+#REF!+'I TRIMESTRE 2023'!C18+ABRIL!C18+MAYO!C18+JUNIO!C18+JULIO!C18+AGOSTO!C18+SETIEMBRE!C18+OCTUBRE!C18+NOVIEMBRE!C18+DICIEMBRE!C18) ->  | D18: =SUM(ENERO!D18+#REF!+'I TRIMESTRE 2023'!D18+ABRIL!D18+MAYO!D18+JUNIO!D18+JULIO!D18+AGOSTO!D18+SETIEMBRE!D18+OCTUBRE!D18+NOVIEMBRE!D18+DICIEMBRE!D18) ->  | E18: =SUM(ENERO!E18+#REF!+'I TRIMESTRE 2023'!E18+ABRIL!E18+MAYO!E18+JUNIO!E18+JULIO!E18+AGOSTO!E18+SETIEMBRE!E18+OCTUBRE!E18+NOVIEMBRE!E18+DICIEMBRE!E18) ->  | F18: =SUM(ENERO!F18+#REF!+'I TRIMESTRE 2023'!F18+ABRIL!F18+MAYO!F18+JUNIO!F18+JULIO!F18+AGOSTO!F18+SETIEMBRE!F18+OCTUBRE!F18+NOVIEMBRE!F18+DICIEMBRE!F18) -> 
B19: SE HA ADMINISTRADO PROFILAXIS CON ANTIBIOTICOS EN LOS ULTIMOS 60 MINUTOS | C19: =SUM(ENERO!C19+#REF!+'I TRIMESTRE 2023'!C19+ABRIL!C19+MAYO!C19+JUNIO!C19+JULIO!C19+AGOSTO!C19+SETIEMBRE!C19+OCTUBRE!C19+NOVIEMBRE!C19+DICIEMBRE!C19) ->  | D19: =SUM(ENERO!D19+#REF!+'I TRIMESTRE 2023'!D19+ABRIL!D19+MAYO!D19+JUNIO!D19+JULIO!D19+AGOSTO!D19+SETIEMBRE!D19+OCTUBRE!D19+NOVIEMBRE!D19+DICIEMBRE!D19) ->  | E19: =SUM(ENERO!E19+#REF!+'I TRIMESTRE 2023'!E19+ABRIL!E19+MAYO!E19+JUNIO!E19+JULIO!E19+AGOSTO!E19+SETIEMBRE!E19+OCTUBRE!E19+NOVIEMBRE!E19+DICIEMBRE!E19) ->  | F19: =SUM(ENERO!F19+#REF!+'I TRIMESTRE 2023'!F19+ABRIL!F19+MAYO!F19+JUNIO!F19+JULIO!F19+AGOSTO!F19+SETIEMBRE!F19+OCTUBRE!F19+NOVIEMBRE!F19+DICIEMBRE!F19) ->  | I19: =SUM(C16,C17,C18,C19,C20,,C22,D23,C24,D25,C26) ->  | J19: =I19/$I$21 -> 
B20: ¿CUALES SON LOS PASOS CRITICOS O INESPERADO? | C20: =SUM(ENERO!C20+#REF!+'I TRIMESTRE 2023'!C20+ABRIL!C20+MAYO!C20+JUNIO!C20+JULIO!C20+AGOSTO!C20+SETIEMBRE!C20+OCTUBRE!C20+NOVIEMBRE!C20+DICIEMBRE!C20) ->  | D20: =SUM(ENERO!D20+#REF!+'I TRIMESTRE 2023'!D20+ABRIL!D20+MAYO!D20+JUNIO!D20+JULIO!D20+AGOSTO!D20+SETIEMBRE!D20+OCTUBRE!D20+NOVIEMBRE!D20+DICIEMBRE!D20) ->  | E20: =SUM(ENERO!E20+#REF!+'I TRIMESTRE 2023'!E20+ABRIL!E20+MAYO!E20+JUNIO!E20+JULIO!E20+AGOSTO!E20+SETIEMBRE!E20+OCTUBRE!E20+NOVIEMBRE!E20+DICIEMBRE!E20) ->  | F20: =SUM(ENERO!F20+#REF!+'I TRIMESTRE 2023'!F20+ABRIL!F20+MAYO!F20+JUNIO!F20+JULIO!F20+AGOSTO!F20+SETIEMBRE!F20+OCTUBRE!F20+NOVIEMBRE!F20+DICIEMBRE!F20) ->  | I20: =SUM(D16,D17,D18,D19,D20,D21,D22,C23,D24,C25,D26) ->  | J20: =I20/$I$21 -> 
B21: ¿CUANTO DURARA LA OPERACIÓN? | C21: =SUM(ENERO!C21+#REF!+'I TRIMESTRE 2023'!C21+ABRIL!C21+MAYO!C21+JUNIO!C21+JULIO!C21+AGOSTO!C21+SETIEMBRE!C21+OCTUBRE!C21+NOVIEMBRE!C21+DICIEMBRE!C21) ->  | D21: =SUM(ENERO!D21+#REF!+'I TRIMESTRE 2023'!D21+ABRIL!D21+MAYO!D21+JUNIO!D21+JULIO!D21+AGOSTO!D21+SETIEMBRE!D21+OCTUBRE!D21+NOVIEMBRE!D21+DICIEMBRE!D21) ->  | E21: =SUM(ENERO!E21+#REF!+'I TRIMESTRE 2023'!E21+ABRIL!E21+MAYO!E21+JUNIO!E21+JULIO!E21+AGOSTO!E21+SETIEMBRE!E21+OCTUBRE!E21+NOVIEMBRE!E21+DICIEMBRE!E21) ->  | F21: =SUM(ENERO!F21+#REF!+'I TRIMESTRE 2023'!F21+ABRIL!F21+MAYO!F21+JUNIO!F21+JULIO!F21+AGOSTO!F21+SETIEMBRE!F21+OCTUBRE!F21+NOVIEMBRE!F21+DICIEMBRE!F21) ->  | I21: =SUM(I19:I20) -> 
B22: ¿CUANTO ES LA PERDIDA DE SALGRE PREVISTA? | C22: =SUM(ENERO!C22+#REF!+'I TRIMESTRE 2023'!C22+ABRIL!C22+MAYO!C22+JUNIO!C22+JULIO!C22+AGOSTO!C22+SETIEMBRE!C22+OCTUBRE!C22+NOVIEMBRE!C22+DICIEMBRE!C22) ->  | D22: =SUM(ENERO!D22+#REF!+'I TRIMESTRE 2023'!D22+ABRIL!D22+MAYO!D22+JUNIO!D22+JULIO!D22+AGOSTO!D22+SETIEMBRE!D22+OCTUBRE!D22+NOVIEMBRE!D22+DICIEMBRE!D22) ->  | E22: =SUM(ENERO!E22+#REF!+'I TRIMESTRE 2023'!E22+ABRIL!E22+MAYO!E22+JUNIO!E22+JULIO!E22+AGOSTO!E22+SETIEMBRE!E22+OCTUBRE!E22+NOVIEMBRE!E22+DICIEMBRE!E22) ->  | F22: =SUM(ENERO!F22+#REF!+'I TRIMESTRE 2023'!F22+ABRIL!F22+MAYO!F22+JUNIO!F22+JULIO!F22+AGOSTO!F22+SETIEMBRE!F22+OCTUBRE!F22+NOVIEMBRE!F22+DICIEMBRE!F22) -> 
B23: ¿PRESENTA EL PACIENTE ALGUN PROBLEMA ESPECIFICO? | C23: =SUM(ENERO!C23+#REF!+'I TRIMESTRE 2023'!C23+ABRIL!C23+MAYO!C23+JUNIO!C23+JULIO!C23+AGOSTO!C23+SETIEMBRE!C23+OCTUBRE!C23+NOVIEMBRE!C23+DICIEMBRE!C23) ->  | D23: =SUM(ENERO!D23+#REF!+'I TRIMESTRE 2023'!D23+ABRIL!D23+MAYO!D23+JUNIO!D23+JULIO!D23+AGOSTO!D23+SETIEMBRE!D23+OCTUBRE!D23+NOVIEMBRE!D23+DICIEMBRE!D23) ->  | E23: =SUM(ENERO!E23+#REF!+'I TRIMESTRE 2023'!E23+ABRIL!E23+MAYO!E23+JUNIO!E23+JULIO!E23+AGOSTO!E23+SETIEMBRE!E23+OCTUBRE!E23+NOVIEMBRE!E23+DICIEMBRE!E23) ->  | F23: =SUM(ENERO!F23+#REF!+'I TRIMESTRE 2023'!F23+ABRIL!F23+MAYO!F23+JUNIO!F23+JULIO!F23+AGOSTO!F23+SETIEMBRE!F23+OCTUBRE!F23+NOVIEMBRE!F23+DICIEMBRE!F23) -> 
B24: ¿SE HA CONFIRMADO LA ESTERILIDAD DE ROPA, INSTRUMENTAL Y EQUIPOS? | C24: =SUM(ENERO!C24+#REF!+'I TRIMESTRE 2023'!C24+ABRIL!C24+MAYO!C24+JUNIO!C24+JULIO!C24+AGOSTO!C24+SETIEMBRE!C24+OCTUBRE!C24+NOVIEMBRE!C24+DICIEMBRE!C24) ->  | D24: =SUM(ENERO!D24+#REF!+'I TRIMESTRE 2023'!D24+ABRIL!D24+MAYO!D24+JUNIO!D24+JULIO!D24+AGOSTO!D24+SETIEMBRE!D24+OCTUBRE!D24+NOVIEMBRE!D24+DICIEMBRE!D24) ->  | E24: =SUM(ENERO!E24+#REF!+'I TRIMESTRE 2023'!E24+ABRIL!E24+MAYO!E24+JUNIO!E24+JULIO!E24+AGOSTO!E24+SETIEMBRE!E24+OCTUBRE!E24+NOVIEMBRE!E24+DICIEMBRE!E24) ->  | F24: =SUM(ENERO!F24+#REF!+'I TRIMESTRE 2023'!F24+ABRIL!F24+MAYO!F24+JUNIO!F24+JULIO!F24+AGOSTO!F24+SETIEMBRE!F24+OCTUBRE!F24+NOVIEMBRE!F24+DICIEMBRE!F24) -> 
B25: ¿HAY DUDAS O PROBLEMAS RELACIONADOS CON ELLOS? | C25: =SUM(ENERO!C25+#REF!+'I TRIMESTRE 2023'!C25+ABRIL!C25+MAYO!C25+JUNIO!C25+JULIO!C25+AGOSTO!C25+SETIEMBRE!C25+OCTUBRE!C25+NOVIEMBRE!C25+DICIEMBRE!C25) ->  | D25: =SUM(ENERO!D25+#REF!+'I TRIMESTRE 2023'!D25+ABRIL!D25+MAYO!D25+JUNIO!D25+JULIO!D25+AGOSTO!D25+SETIEMBRE!D25+OCTUBRE!D25+NOVIEMBRE!D25+DICIEMBRE!D25) ->  | E25: =SUM(ENERO!E25+#REF!+'I TRIMESTRE 2023'!E25+ABRIL!E25+MAYO!E25+JUNIO!E25+JULIO!E25+AGOSTO!E25+SETIEMBRE!E25+OCTUBRE!E25+NOVIEMBRE!E25+DICIEMBRE!E25) ->  | F25: =SUM(ENERO!F25+#REF!+'I TRIMESTRE 2023'!F25+ABRIL!F25+MAYO!F25+JUNIO!F25+JULIO!F25+AGOSTO!F25+SETIEMBRE!F25+OCTUBRE!F25+NOVIEMBRE!F25+DICIEMBRE!F25) -> 
B26: ¿PUEDEN VISUALIZARSE LAS IMÁGENES DIAGNOSTICADAS ESENCIALES? | C26: =SUM(ENERO!C26+#REF!+'I TRIMESTRE 2023'!C26+ABRIL!C26+MAYO!C26+JUNIO!C26+JULIO!C26+AGOSTO!C26+SETIEMBRE!C26+OCTUBRE!C26+NOVIEMBRE!C26+DICIEMBRE!C26) ->  | D26: =SUM(ENERO!D26+#REF!+'I TRIMESTRE 2023'!D26+ABRIL!D26+MAYO!D26+JUNIO!D26+JULIO!D26+AGOSTO!D26+SETIEMBRE!D26+OCTUBRE!D26+NOVIEMBRE!D26+DICIEMBRE!D26) ->  | E26: =SUM(ENERO!E26+#REF!+'I TRIMESTRE 2023'!E26+ABRIL!E26+MAYO!E26+JUNIO!E26+JULIO!E26+AGOSTO!E26+SETIEMBRE!E26+OCTUBRE!E26+NOVIEMBRE!E26+DICIEMBRE!E26) ->  | F26: =SUM(ENERO!F26+#REF!+'I TRIMESTRE 2023'!F26+ABRIL!F26+MAYO!F26+JUNIO!F26+JULIO!F26+AGOSTO!F26+SETIEMBRE!F26+OCTUBRE!F26+NOVIEMBRE!F26+DICIEMBRE!F26) -> 
A27: SALIDA | B27: EL ENFERMERO CONFIRMA VERBALMENTE EL NOMBRE DEL PROCEDIMIENTO | C27: =SUM(ENERO!C27+#REF!+'I TRIMESTRE 2023'!C27+ABRIL!C27+MAYO!C27+JUNIO!C27+JULIO!C27+AGOSTO!C27+SETIEMBRE!C27+OCTUBRE!C27+NOVIEMBRE!C27+DICIEMBRE!C27) ->  | D27: =SUM(ENERO!D27+#REF!+'I TRIMESTRE 2023'!D27+ABRIL!D27+MAYO!D27+JUNIO!D27+JULIO!D27+AGOSTO!D27+SETIEMBRE!D27+OCTUBRE!D27+NOVIEMBRE!D27+DICIEMBRE!D27) ->  | E27: =SUM(ENERO!E27+#REF!+'I TRIMESTRE 2023'!E27+ABRIL!E27+MAYO!E27+JUNIO!E27+JULIO!E27+AGOSTO!E27+SETIEMBRE!E27+OCTUBRE!E27+NOVIEMBRE!E27+DICIEMBRE!E27) ->  | F27: =SUM(ENERO!F27+#REF!+'I TRIMESTRE 2023'!F27+ABRIL!F27+MAYO!F27+JUNIO!F27+JULIO!F27+AGOSTO!F27+SETIEMBRE!F27+OCTUBRE!F27+NOVIEMBRE!F27+DICIEMBRE!F27) -> 
B28: EL RECUENTO DE INSTRUMENTOS, GASA Y AGUJAS | C28: =SUM(ENERO!C28+#REF!+'I TRIMESTRE 2023'!C28+ABRIL!C28+MAYO!C28+JUNIO!C28+JULIO!C28+AGOSTO!C28+SETIEMBRE!C28+OCTUBRE!C28+NOVIEMBRE!C28+DICIEMBRE!C28) ->  | D28: =SUM(ENERO!D28+#REF!+'I TRIMESTRE 2023'!D28+ABRIL!D28+MAYO!D28+JUNIO!D28+JULIO!D28+AGOSTO!D28+SETIEMBRE!D28+OCTUBRE!D28+NOVIEMBRE!D28+DICIEMBRE!D28) ->  | E28: =SUM(ENERO!E28+#REF!+'I TRIMESTRE 2023'!E28+ABRIL!E28+MAYO!E28+JUNIO!E28+JULIO!E28+AGOSTO!E28+SETIEMBRE!E28+OCTUBRE!E28+NOVIEMBRE!E28+DICIEMBRE!E28) ->  | F28: =SUM(ENERO!F28+#REF!+'I TRIMESTRE 2023'!F28+ABRIL!F28+MAYO!F28+JUNIO!F28+JULIO!F28+AGOSTO!F28+SETIEMBRE!F28+OCTUBRE!F28+NOVIEMBRE!F28+DICIEMBRE!F28) ->  | I28: =SUM(C27,C28,C29,C30,C31,D32) ->  | J28: =I28/$I$30 -> 
B29: EL ETIQUETADO DE LAS MUESTRAS (LECTURA DE LA ETIQUETA EN VOZ ALTA, INCLUIDO EL NOMBRE DEL PACIENTE | C29: =SUM(ENERO!C29+#REF!+'I TRIMESTRE 2023'!C29+ABRIL!C29+MAYO!C29+JUNIO!C29+JULIO!C29+AGOSTO!C29+SETIEMBRE!C29+OCTUBRE!C29+NOVIEMBRE!C29+DICIEMBRE!C29) ->  | D29: =SUM(ENERO!D29+#REF!+'I TRIMESTRE 2023'!D29+ABRIL!D29+MAYO!D29+JUNIO!D29+JULIO!D29+AGOSTO!D29+SETIEMBRE!D29+OCTUBRE!D29+NOVIEMBRE!D29+DICIEMBRE!D29) ->  | E29: =SUM(ENERO!E29+#REF!+'I TRIMESTRE 2023'!E29+ABRIL!E29+MAYO!E29+JUNIO!E29+JULIO!E29+AGOSTO!E29+SETIEMBRE!E29+OCTUBRE!E29+NOVIEMBRE!E29+DICIEMBRE!E29) ->  | F29: =SUM(ENERO!F29+#REF!+'I TRIMESTRE 2023'!F29+ABRIL!F29+MAYO!F29+JUNIO!F29+JULIO!F29+AGOSTO!F29+SETIEMBRE!F29+OCTUBRE!F29+NOVIEMBRE!F29+DICIEMBRE!F29) ->  | I29: =SUM(D27,D28,D29,D30,D31,C32) ->  | J29: =I29/$I$30 -> 
B30: SI HAY PROBLEMAS QUE SE RESUELVE RELACIONADOS CON EL INSTRUMENTAL Y LOS EQUIPOS | C30: =SUM(ENERO!C30+#REF!+'I TRIMESTRE 2023'!C30+ABRIL!C30+MAYO!C30+JUNIO!C30+JULIO!C30+AGOSTO!C30+SETIEMBRE!C30+OCTUBRE!C30+NOVIEMBRE!C30+DICIEMBRE!C30) ->  | D30: =SUM(ENERO!D30+#REF!+'I TRIMESTRE 2023'!D30+ABRIL!D30+MAYO!D30+JUNIO!D30+JULIO!D30+AGOSTO!D30+SETIEMBRE!D30+OCTUBRE!D30+NOVIEMBRE!D30+DICIEMBRE!D30) ->  | E30: =SUM(ENERO!E30+#REF!+'I TRIMESTRE 2023'!E30+ABRIL!E30+MAYO!E30+JUNIO!E30+JULIO!E30+AGOSTO!E30+SETIEMBRE!E30+OCTUBRE!E30+NOVIEMBRE!E30+DICIEMBRE!E30) ->  | F30: =SUM(ENERO!F30+#REF!+'I TRIMESTRE 2023'!F30+ABRIL!F30+MAYO!F30+JUNIO!F30+JULIO!F30+AGOSTO!F30+SETIEMBRE!F30+OCTUBRE!F30+NOVIEMBRE!F30+DICIEMBRE!F30) ->  | I30: =SUM(I28:I29) -> 
B31: (CIRUJANO, ANESTESIOLOGO, ENFERMERO) CUALES SON LOS ASPECTOS CRITICOS DE LA RECUPERACION Y EL TRAMITE | C31: =SUM(ENERO!C31+#REF!+'I TRIMESTRE 2023'!C31+ABRIL!C31+MAYO!C31+JUNIO!C31+JULIO!C31+AGOSTO!C31+SETIEMBRE!C31+OCTUBRE!C31+NOVIEMBRE!C31+DICIEMBRE!C31) ->  | D31: =SUM(ENERO!D31+#REF!+'I TRIMESTRE 2023'!D31+ABRIL!D31+MAYO!D31+JUNIO!D31+JULIO!D31+AGOSTO!D31+SETIEMBRE!D31+OCTUBRE!D31+NOVIEMBRE!D31+DICIEMBRE!D31) ->  | E31: =SUM(ENERO!E31+#REF!+'I TRIMESTRE 2023'!E31+ABRIL!E31+MAYO!E31+JUNIO!E31+JULIO!E31+AGOSTO!E31+SETIEMBRE!E31+OCTUBRE!E31+NOVIEMBRE!E31+DICIEMBRE!E31) ->  | F31: =SUM(ENERO!F31+#REF!+'I TRIMESTRE 2023'!F31+ABRIL!F31+MAYO!F31+JUNIO!F31+JULIO!F31+AGOSTO!F31+SETIEMBRE!F31+OCTUBRE!F31+NOVIEMBRE!F31+DICIEMBRE!F31) -> 
B32: OBSERVACIONES | C32: =SUM(ENERO!C32+#REF!+'I TRIMESTRE 2023'!C32+ABRIL!C32+MAYO!C32+JUNIO!C32+JULIO!C32+AGOSTO!C32+SETIEMBRE!C32+OCTUBRE!C32+NOVIEMBRE!C32+DICIEMBRE!C32) ->  | D32: =SUM(ENERO!D32+#REF!+'I TRIMESTRE 2023'!D32+ABRIL!D32+MAYO!D32+JUNIO!D32+JULIO!D32+AGOSTO!D32+SETIEMBRE!D32+OCTUBRE!D32+NOVIEMBRE!D32+DICIEMBRE!D32) ->  | E32: =SUM(ENERO!E32+#REF!+'I TRIMESTRE 2023'!E32+ABRIL!E32+MAYO!E32+JUNIO!E32+JULIO!E32+AGOSTO!E32+SETIEMBRE!E32+OCTUBRE!E32+NOVIEMBRE!E32+DICIEMBRE!E32) ->  | F32: =SUM(ENERO!F32+#REF!+'I TRIMESTRE 2023'!F32+ABRIL!F32+MAYO!F32+JUNIO!F32+JULIO!F32+AGOSTO!F32+SETIEMBRE!F32+OCTUBRE!F32+NOVIEMBRE!F32+DICIEMBRE!F32) -> 
A33: FIRMA | B33: FIRMA DEL CIRUJANO | C33: =SUM(ENERO!C33+#REF!+'I TRIMESTRE 2023'!C33+ABRIL!C33+MAYO!C33+JUNIO!C33+JULIO!C33+AGOSTO!C33+SETIEMBRE!C33+OCTUBRE!C33+NOVIEMBRE!C33+DICIEMBRE!C33) ->  | D33: =SUM(ENERO!D33+#REF!+'I TRIMESTRE 2023'!D33+ABRIL!D33+MAYO!D33+JUNIO!D33+JULIO!D33+AGOSTO!D33+SETIEMBRE!D33+OCTUBRE!D33+NOVIEMBRE!D33+DICIEMBRE!D33) ->  | E33: =SUM(ENERO!E33+#REF!+'I TRIMESTRE 2023'!E33+ABRIL!E33+MAYO!E33+JUNIO!E33+JULIO!E33+AGOSTO!E33+SETIEMBRE!E33+OCTUBRE!E33+NOVIEMBRE!E33+DICIEMBRE!E33) ->  | F33: =SUM(ENERO!F33+#REF!+'I TRIMESTRE 2023'!F33+ABRIL!F33+MAYO!F33+JUNIO!F33+JULIO!F33+AGOSTO!F33+SETIEMBRE!F33+OCTUBRE!F33+NOVIEMBRE!F33+DICIEMBRE!F33) -> 
B34: FIRMA DEL ANESTESIOLOGO | C34: =SUM(ENERO!C34+#REF!+'I TRIMESTRE 2023'!C34+ABRIL!C34+MAYO!C34+JUNIO!C34+JULIO!C34+AGOSTO!C34+SETIEMBRE!C34+OCTUBRE!C34+NOVIEMBRE!C34+DICIEMBRE!C34) ->  | D34: =SUM(ENERO!D34+#REF!+'I TRIMESTRE 2023'!D34+ABRIL!D34+MAYO!D34+JUNIO!D34+JULIO!D34+AGOSTO!D34+SETIEMBRE!D34+OCTUBRE!D34+NOVIEMBRE!D34+DICIEMBRE!D34) ->  | E34: =SUM(ENERO!E34+#REF!+'I TRIMESTRE 2023'!E34+ABRIL!E34+MAYO!E34+JUNIO!E34+JULIO!E34+AGOSTO!E34+SETIEMBRE!E34+OCTUBRE!E34+NOVIEMBRE!E34+DICIEMBRE!E34) ->  | F34: =SUM(ENERO!F34+#REF!+'I TRIMESTRE 2023'!F34+ABRIL!F34+MAYO!F34+JUNIO!F34+JULIO!F34+AGOSTO!F34+SETIEMBRE!F34+OCTUBRE!F34+NOVIEMBRE!F34+DICIEMBRE!F34) -> 
B35: FIRMA DE LA ENFERMERA | C35: =SUM(ENERO!C35+#REF!+'I TRIMESTRE 2023'!C35+ABRIL!C35+MAYO!C35+JUNIO!C35+JULIO!C35+AGOSTO!C35+SETIEMBRE!C35+OCTUBRE!C35+NOVIEMBRE!C35+DICIEMBRE!C35) ->  | D35: =SUM(ENERO!D35+#REF!+'I TRIMESTRE 2023'!D35+ABRIL!D35+MAYO!D35+JUNIO!D35+JULIO!D35+AGOSTO!D35+SETIEMBRE!D35+OCTUBRE!D35+NOVIEMBRE!D35+DICIEMBRE!D35) ->  | E35: =SUM(ENERO!E35+#REF!+'I TRIMESTRE 2023'!E35+ABRIL!E35+MAYO!E35+JUNIO!E35+JULIO!E35+AGOSTO!E35+SETIEMBRE!E35+OCTUBRE!E35+NOVIEMBRE!E35+DICIEMBRE!E35) ->  | F35: =SUM(ENERO!F35+#REF!+'I TRIMESTRE 2023'!F35+ABRIL!F35+MAYO!F35+JUNIO!F35+JULIO!F35+AGOSTO!F35+SETIEMBRE!F35+OCTUBRE!F35+NOVIEMBRE!F35+DICIEMBRE!F35) ->  | I35: =SUM(C33,C34,C35,C36,C37,C38,C39) ->  | J35: =I35/$I$37 -> 
B36: FIRMA DEL COORDINADOR | C36: =SUM(ENERO!C36+#REF!+'I TRIMESTRE 2023'!C36+ABRIL!C36+MAYO!C36+JUNIO!C36+JULIO!C36+AGOSTO!C36+SETIEMBRE!C36+OCTUBRE!C36+NOVIEMBRE!C36+DICIEMBRE!C36) ->  | D36: =SUM(ENERO!D36+#REF!+'I TRIMESTRE 2023'!D36+ABRIL!D36+MAYO!D36+JUNIO!D36+JULIO!D36+AGOSTO!D36+SETIEMBRE!D36+OCTUBRE!D36+NOVIEMBRE!D36+DICIEMBRE!D36) ->  | E36: =SUM(ENERO!E36+#REF!+'I TRIMESTRE 2023'!E36+ABRIL!E36+MAYO!E36+JUNIO!E36+JULIO!E36+AGOSTO!E36+SETIEMBRE!E36+OCTUBRE!E36+NOVIEMBRE!E36+DICIEMBRE!E36) ->  | F36: =SUM(ENERO!F36+#REF!+'I TRIMESTRE 2023'!F36+ABRIL!F36+MAYO!F36+JUNIO!F36+JULIO!F36+AGOSTO!F36+SETIEMBRE!F36+OCTUBRE!F36+NOVIEMBRE!F36+DICIEMBRE!F36) ->  | I36: =SUM(D33,D34,D35,D36,D37,,D38,D39) ->  | J36: =I36/$I$37 -> 
B37: NRO DE HISTORIA CLINICA | C37: =SUM(ENERO!C37+#REF!+'I TRIMESTRE 2023'!C37+ABRIL!C37+MAYO!C37+JUNIO!C37+JULIO!C37+AGOSTO!C37+SETIEMBRE!C37+OCTUBRE!C37+NOVIEMBRE!C37+DICIEMBRE!C37) ->  | D37: =SUM(ENERO!D37+#REF!+'I TRIMESTRE 2023'!D37+ABRIL!D37+MAYO!D37+JUNIO!D37+JULIO!D37+AGOSTO!D37+SETIEMBRE!D37+OCTUBRE!D37+NOVIEMBRE!D37+DICIEMBRE!D37) ->  | E37: =SUM(ENERO!E37+#REF!+'I TRIMESTRE 2023'!E37+ABRIL!E37+MAYO!E37+JUNIO!E37+JULIO!E37+AGOSTO!E37+SETIEMBRE!E37+OCTUBRE!E37+NOVIEMBRE!E37+DICIEMBRE!E37) ->  | F37: =SUM(ENERO!F37+#REF!+'I TRIMESTRE 2023'!F37+ABRIL!F37+MAYO!F37+JUNIO!F37+JULIO!F37+AGOSTO!F37+SETIEMBRE!F37+OCTUBRE!F37+NOVIEMBRE!F37+DICIEMBRE!F37) ->  | I37: =SUM(I35:I36) -> 
B38: NOMBRE Y APELLIDOS DEL PACIENTE | C38: =SUM(ENERO!C38+#REF!+'I TRIMESTRE 2023'!C38+ABRIL!C38+MAYO!C38+JUNIO!C38+JULIO!C38+AGOSTO!C38+SETIEMBRE!C38+OCTUBRE!C38+NOVIEMBRE!C38+DICIEMBRE!C38) ->  | D38: =SUM(ENERO!D38+#REF!+'I TRIMESTRE 2023'!D38+ABRIL!D38+MAYO!D38+JUNIO!D38+JULIO!D38+AGOSTO!D38+SETIEMBRE!D38+OCTUBRE!D38+NOVIEMBRE!D38+DICIEMBRE!D38) ->  | E38: =SUM(ENERO!E38+#REF!+'I TRIMESTRE 2023'!E38+ABRIL!E38+MAYO!E38+JUNIO!E38+JULIO!E38+AGOSTO!E38+SETIEMBRE!E38+OCTUBRE!E38+NOVIEMBRE!E38+DICIEMBRE!E38) ->  | F38: =SUM(ENERO!F38+#REF!+'I TRIMESTRE 2023'!F38+ABRIL!F38+MAYO!F38+JUNIO!F38+JULIO!F38+AGOSTO!F38+SETIEMBRE!F38+OCTUBRE!F38+NOVIEMBRE!F38+DICIEMBRE!F38) -> 
B39: FECHA | C39: =SUM(ENERO!C39+#REF!+'I TRIMESTRE 2023'!C39+ABRIL!C39+MAYO!C39+JUNIO!C39+JULIO!C39+AGOSTO!C39+SETIEMBRE!C39+OCTUBRE!C39+NOVIEMBRE!C39+DICIEMBRE!C39) ->  | D39: =SUM(ENERO!D39+#REF!+'I TRIMESTRE 2023'!D39+ABRIL!D39+MAYO!D39+JUNIO!D39+JULIO!D39+AGOSTO!D39+SETIEMBRE!D39+OCTUBRE!D39+NOVIEMBRE!D39+DICIEMBRE!D39) ->  | E39: =SUM(ENERO!E39+#REF!+'I TRIMESTRE 2023'!E39+ABRIL!E39+MAYO!E39+JUNIO!E39+JULIO!E39+AGOSTO!E39+SETIEMBRE!E39+OCTUBRE!E39+NOVIEMBRE!E39+DICIEMBRE!E39) ->  | F39: =SUM(ENERO!F39+#REF!+'I TRIMESTRE 2023'!F39+ABRIL!F39+MAYO!F39+JUNIO!F39+JULIO!F39+AGOSTO!F39+SETIEMBRE!F39+OCTUBRE!F39+NOVIEMBRE!F39+DICIEMBRE!F39) -> 
B45: PORCENTAJE DE CUMPLIMIENTO DE LA LISTA DE VERIFICACION DE CIRUGIA SEGURA
C51: ENTRADA | D51: (+) | E51: =J8 -> 
D52: (-) | E52: =J9 -> 
C53: PAUSA | D53: (+) | E53: =J19 ->  | M53: Cumplimiento
D54: (-) | E54: =J20 ->  | L54: Entrada | M54: =E51 -> 
C55: SALIDA | D55: (+) | E55: =J28 ->  | L55: Pausa | M55: =E53 -> 
D56: (-) | E56: =J29 ->  | L56: Salida | M56: =E55 -> 
C57: FIRMA | D57: (+) | E57: =J35 ->  | L57: Firmas | M57: =E57 -> 
D58: (-) | E58: =J36 ->  | L58: Cumplimiento Mensual | M58: =AVERAGE(M54:M57) -> 
C59: CUMPLIMIENTO | E59: =M58 -> 
